{"text_format":"1","workbook":"xlsx","n_sheets":6,"sheets":["Notes","Summary","STP","Trusts","Categories","BS"],"not_rendered":{"charts":0,"images":0,"macros":1,"external_links":1,"defined_names":14,"comments":0,"pivot_tables":0},"unopened":[],"bounds":{"document_bytes":16777216,"sheet_cells":100000,"rows_first":2000,"rows_last":500,"rows_between":2000,"halvings":0,"cell_chars":16384,"cell_head_chars":4096},"cells_cut":0,"cells_raw":0,"read":"whole","date_system":"1900"}

{"sheet":"Notes","index":0,"n_rows":2,"n_cols":8,"rows_kept":2,"cut":false,"hidden":false,"merged":[[1,1,1,4]]}
[]
[null,"Mental Health Friends and Family Test (FFT) data - November 2021",null,null,null,null,null,"  Show data for:"]

{"sheet":"Summary","index":1,"n_rows":12,"n_cols":10,"rows_kept":12,"cut":false,"hidden":false,"merged":[[2,1,3,1],[2,4,2,5],[2,6,2,7],[2,8,2,9]]}
[]
[]
[null,"FFT","Number of organisations submitting","Total responses to date","Responses",null,"Percentage Positive",null,"Percentage Negative"]
[null,null,"2021-11-01","2021-11-01","2021-11-01","2021-10-27","2021-11-01","2021-10-27","2021-11-01","2021-10-27"]
[null,"Mental Health Overall",68,1364171,16985,15214,0.85758021783926996,0.8705140002629157,6.9237562555195767E-2,6.0930721703693964E-2]
[null,"Primary Care",36,234283,2424,1975,0.87953795379537958,0.90632911392405058,6.3531353135313537E-2,4.5569620253164557E-2]
[null,"Secondary Care Community Services",48,498659,6391,5577,0.83758410264434358,0.86462255693024925,8.9500860585197933E-2,7.0826609288147754E-2]
[null,"Acute Services",42,213906,2431,2275,0.82928835870012341,0.83076923076923082,6.4993829699712055E-2,6.901098901098901E-2]
[null,"Specialist Services",41,111858,1597,1321,0.90857858484658738,0.91143073429220289,4.4458359423919847E-2,4.8448145344436033E-2]
[null,"Secure and Forensic Services",26,50830,876,843,0.84360730593607303,0.8754448398576512,5.8219178082191778E-2,4.5077105575326216E-2]
[null,"Child and Adolescent Mental Health Services",46,164250,1917,1898,0.87115284298382889,0.85879873551106423,6.3119457485654673E-2,6.5331928345626969E-2]
[null,"Mental Health Other",36,90385,1349,1325,0.89325426241660488,0.88301886792452833,3.6323202372127501E-2,4.4528301886792451E-2]

{"sheet":"STP","index":2,"n_rows":45,"n_cols":12,"rows_kept":45,"cut":false,"hidden":false,"merged":[[2,6,2,11],[2,0,3,0],[2,1,3,1],[2,2,3,2],[2,3,3,3],[2,4,3,4],[2,5,3,5]]}
[]
[]
["STP Code","STP Name","Total Responses","Total Eligible","Percentage Positive","Percentage Negative","Breakdown of Responses"]
[null,null,null,null,null,null,"Very Good","Good","Neither Good nor Poor","Poor","Very Poor","Don't Know"]
[null,"England (including Independent Sector Providers)",16985,765177,0.85758021783926996,6.9237562555195767E-2,10668,3898,915,457,719,328]
[null,"England (excluding Independent Sector Providers)",16364,756545,0.85584209239794673,7.0642874602786607E-2,10241,3764,885,446,710,318]
[null,"Selection (excluding suppressed data)",{"$f":"SUBTOTAL(9,C8:C100)","v":16985},{"$f":"SUBTOTAL(9,D8:D100)","v":765177},{"$f":"IFERROR((G7+H7)/SUM(G7:L7), \"-\")","v":0.85758021783926996},{"$f":"IFERROR((J7+K7)/SUM(G7:L7), \"-\")","v":6.9237562555195767E-2},{"$f":"SUBTOTAL(9,G8:G100)","v":10668},3898,915,457,719,328]
["QE1","HEALTHIER LANCASHIRE AND SOUTH CUMBRIA",872,35111,0.97018348623853212,9.1743119266055051E-3,719,127,18,4,4,0]
["QF7","SOUTH YORKSHIRE AND BASSETLAW STP",225,28172,0.93333333333333335,2.2222222222222223E-2,156,54,10,3,2,0]
["QGH","HEREFORDSHIRE AND WORCESTERSHIRE STP",35,4183,0.48571428571428571,0.45714285714285713,12,5,2,6,10,0]
["QH8","MID AND SOUTH ESSEX STP",13,11710,1,0,13,0,0,0,0,0]
["QHL","BIRMINGHAM AND SOLIHULL STP",0,0,"NA","NA",0,0,0,0,0,0]
["QHM","CUMBRIA AND NORTH EAST STP",934,141976,0.8907922912205567,4.3897216274089934E-2,585,247,45,19,22,16]
["QJ2","JOINED UP CARE DERBYSHIRE STP",381,16539,0.90288713910761154,3.4120734908136482E-2,286,58,10,4,9,14]
["QJM","LINCOLNSHIRE STP",479,4363,0.88935281837160751,2.9227557411273485E-2,285,141,31,5,9,8]
["QK1","LEICESTER, LEICESTERSHIRE AND RUTLAND STP",942,21914,0.67197452229299359,0.20912951167728239,464,169,71,61,136,41]
["QKK","OUR HEALTHIER SOUTH EAST LONDON STP",1131,45611,0.77718832891246681,9.7259062776304153E-2,575,304,124,55,55,18]
["QKS","KENT AND MEDWAY STP",641,15840,0.87831513260530425,2.9641185647425898E-2,370,193,31,10,9,28]
["QM7","HERTFORDSHIRE AND WEST ESSEX STP",287,13552,0.89547038327526129,6.2717770034843204E-2,179,78,9,8,10,3]
["QMF","EAST LONDON HEALTH & CARE PARTNERSHIP (STP)",753,57556,0.79814077025232399,8.4993359893758294E-2,386,215,69,25,39,19]
["QMJ","NORTH LONDON PARTNERS IN HEALTH & CARE (STP)",1120,35866,0.89107142857142863,4.1071428571428571E-2,629,369,62,18,28,14]
["QMM","NORFOLK AND WAVENEY HEALTH & CARE PARTNERSHIP (STP)",277,27971,0.59927797833935015,0.26353790613718414,121,45,31,22,51,7]
["QNC","STAFFORDSHIRE & STOKE ON TRENT STP",419,36306,0.85918854415274459,4.77326968973747E-2,285,75,31,3,17,8]
["QNQ","FRIMLEY HEALTH & CARE (STP)",785,6048,0.82292993630573252,0.1070063694267516,444,202,47,28,56,8]
["QNX","SUSSEX HEALTH AND CARE PARTNERSHIP",162,11589,0.76543209876543206,0.12345679012345678,80,44,14,11,9,4]
["QOP","GREATER MANCHESTER HEALTH & SOCIAL CARE PARTNERSHIP",1069,30887,0.86623012160898039,6.9223573433115054E-2,687,239,57,30,44,12]
["QOQ","HUMBER, COAST AND VALE STP",115,4192,0.92173913043478262,2.6086956521739129E-2,80,26,5,2,1,1]
["QOX","BATH AND NORTH EAST SOMERSET, SWINDON AND WILTSHIRE STP",374,6184,0.87433155080213909,3.7433155080213901E-2,220,107,20,10,4,13]
["QPM","NORTHAMPTONSHIRE STP",517,6869,0.92069632495164411,3.4816247582205029E-2,414,62,6,1,17,17]
["QR1","GLOUCESTERSHIRE STP",154,3422,0.91558441558441561,1.948051948051948E-2,104,37,8,1,2,2]
["QRL","HAMPSHIRE AND THE ISLE OF WIGHT STP",484,15165,0.98347107438016534,0,399,77,3,0,0,5]
["QRV","NORTH WEST LONDON HEALTH & CARE PARTNERSHIP (STP)",160,7683,0.92500000000000004,3.7499999999999999E-2,124,24,6,4,2,0]
["QSL","SOMERSET STP",59,6851,0.96610169491525422,0,37,20,2,0,0,0]
["QT1","NOTTINGHAM AND NOTTINGHAMSHIRE HEALTH AND CARE STP",113,17139,0.69026548672566368,0.22123893805309736,55,23,8,10,15,2]
["QT6","CORNWALL AND THE ISLES OF SCILLY HEALTH & SOCIAL CARE PARTNERSHIP (STP)",9,4495,1,0,4,5,0,0,0,0]
["QU9","BUCKINGHAMSHIRE, OXFORDSHIRE AND BERKSHIRE WEST STP",134,13581,0.88805970149253732,7.4626865671641784E-2,91,28,4,3,7,1]
["QUA","THE BLACK COUNTRY AND WEST BIRMINGHAM STP",415,37398,0.91807228915662653,3.3734939759036145E-2,294,87,16,7,7,4]
["QUE","CAMBRIDGESHIRE AND PETERBOROUGH STP",230,2398,0.9,3.4782608695652174E-2,139,68,9,2,6,6]
["QVV","DORSET STP",397,7754,0.87153652392947101,6.5491183879093195E-2,241,105,17,12,14,8]
["QWE","SOUTH WEST LONDON HEALTH & CARE PARTNERSHIP (STP)",580,19125,0.81379310344827582,0.10517241379310345,381,91,20,20,41,27]
["QWO","WEST YORKSHIRE AND HARROGATE HEALTH & CARE PARTNERSHIP (STP)",1014,29316,0.83234714003944776,9.6646942800788949E-2,662,182,53,43,55,19]
["QWU","COVENTRY AND WARWICKSHIRE STP",0,0,"NA","NA",0,0,0,0,0,0]
["QXU","SURREY HEARTLANDS HEALTH & CARE PARTNERSHIP (STP)",239,9190,0.94979079497907948,1.6736401673640166E-2,169,58,5,2,2,3]
["QYG","CHESHIRE AND MERSEYSIDE STP",845,20589,0.8875739644970414,5.2071005917159761E-2,551,199,41,17,27,10]
["IS1","Independent Sector Providers",621,8632,0.90338164251207731,3.2206119162640899E-2,427,134,30,11,9,10]

{"sheet":"Trusts","index":3,"n_rows":75,"n_cols":21,"rows_kept":75,"cut":false,"hidden":false,"merged":[[2,6,3,6],[2,7,2,12],[2,13,2,20],[2,0,3,0],[2,1,3,1],[2,2,3,2],[2,3,3,3],[2,4,3,4],[2,5,3,5]]}
[]
[]
["STP Code","Trust Code","Trust Name","Total Responses","Total Eligible","Percentage Positive","Percentage Negative","Breakdown of Responses",null,null,null,null,null,"Mode of Collection"]
[null,null,null,null,null,null,null,"Very Good","Good","Neither Good nor Poor","Poor","Very Poor","Don't Know","Mode SMS","Mode Electronic Discharge","Mode Electronic Home","Mode Paper Discharge","Mode Paper Home","Mode Telephone","Mode Online","Mode Other"]
[null,null,"England (including Independent Sector Providers)",16985,765177,0.85758021783926996,6.9237562555195767E-2,10668,3898,915,457,719,328,2820,1543,230,3559,1735,58,5464,1576]
[null,null,"England (excluding Independent Sector Providers)",16364,756545,0.85584209239794673,7.0642874602786607E-2,10241,3764,885,446,710,318,2792,1543,223,3417,1728,58,5346,1257]
[null,null,"Selection (excluding suppressed data)",{"$f":"SUBTOTAL(9,D8:D193)","v":16985},{"$f":"SUBTOTAL(9,E8:E193)","v":765177},{"$f":"IFERROR((H7+I7)/SUM(H7:M7), \"-\")","v":0.857202580028667},{"$f":"IFERROR((K7+L7)/SUM(H7:M7), \"-\")","v":6.9457716196846625E-2},{"$f":"SUBTOTAL(9,H8:H193)","v":10507},3846,908,447,716,320,2820,1474,226,3471,1680,51,5446,1576]
["QE1","RXL","BLACKPOOL TEACHING HOSPITALS NHS FOUNDATION TRUST",54,1113,1,0,42,12,0,0,0,0,0,0,0,34,0,0,20,{"$f":"IF(VLOOKUP($B8,[1]TrustCalcs!$B:$H,7,0)=1,\"*\",VLOOKUP($B8,'[1]Collection Mode'!$C:$O, 13, 0))","v":0}]
["QE1","RW5","LANCASHIRE & SOUTH CUMBRIA NHS FOUNDATION TRUST",818,33998,0.9682151589242054,9.7799511002444987E-3,677,115,18,4,4,0,0,0,0,1,0,0,817,{"$f":"IF(VLOOKUP($B9,[1]TrustCalcs!$B:$H,7,0)=1,\"*\",VLOOKUP($B9,'[1]Collection Mode'!$C:$O, 13, 0))","v":0}]
["QF7","RXE","ROTHERHAM DONCASTER AND SOUTH HUMBER NHS FOUNDATION TRUST",86,19470,0.93023255813953487,2.3255813953488372E-2,"*","*","*","*","*","*","*","*","*","*","*","*","*",{"$f":"IF(VLOOKUP($B10,[1]TrustCalcs!$B:$H,7,0)=1,\"*\",VLOOKUP($B10,'[1]Collection Mode'!$C:$O, 13, 0))","v":"*"}]
["QF7","RCU","SHEFFIELD CHILDREN'S NHS FOUNDATION TRUST",1,990,"*","*","*","*","*","*","*","*","*","*","*","*","*","*","*",{"$f":"IF(VLOOKUP($B11,[1]TrustCalcs!$B:$H,7,0)=1,\"*\",VLOOKUP($B11,'[1]Collection Mode'!$C:$O, 13, 0))","v":"*"}]
["QF7","TAH","SHEFFIELD HEALTH & SOCIAL CARE NHS FOUNDATION TRUST",138,7712,0.94202898550724634,1.4492753623188406E-2,89,41,6,2,0,0,0,0,0,138,0,0,0,{"$f":"IF(VLOOKUP($B12,[1]TrustCalcs!$B:$H,7,0)=1,\"*\",VLOOKUP($B12,'[1]Collection Mode'!$C:$O, 13, 0))","v":0}]
["QGH","R1A","HEREFORDSHIRE AND WORCESTERSHIRE HEALTH AND CARE NHS TRUST",35,4183,0.48571428571428571,0.45714285714285713,12,5,2,6,10,0,35,0,0,0,0,0,0,{"$f":"IF(VLOOKUP($B13,[1]TrustCalcs!$B:$H,7,0)=1,\"*\",VLOOKUP($B13,'[1]Collection Mode'!$C:$O, 13, 0))","v":0}]
["QH8","R1L","ESSEX PARTNERSHIP UNIVERSITY NHS FOUNDATION TRUST",13,11710,1,0,13,0,0,0,0,0,0,0,0,2,0,0,11,{"$f":"IF(VLOOKUP($B14,[1]TrustCalcs!$B:$H,7,0)=1,\"*\",VLOOKUP($B14,'[1]Collection Mode'!$C:$O, 13, 0))","v":0}]
["QHM","RX4","CUMBRIA, NORTHUMBERLAND, TYNE AND WEAR NHS FOUNDATION TRUST",226,35259,0.85398230088495575,9.2920353982300891E-2,145,48,12,5,16,0,0,0,0,153,0,0,0,{"$f":"IF(VLOOKUP($B15,[1]TrustCalcs!$B:$H,7,0)=1,\"*\",VLOOKUP($B15,'[1]Collection Mode'!$C:$O, 13, 0))","v":73}]
["QHM","RR7","GATESHEAD HEALTH NHS FOUNDATION TRUST",0,133,"NA","NA",0,0,0,0,0,0,0,0,0,0,0,0,0,{"$f":"IF(VLOOKUP($B16,[1]TrustCalcs!$B:$H,7,0)=1,\"*\",VLOOKUP($B16,'[1]Collection Mode'!$C:$O, 13, 0))","v":0}]
["QHM","RTF","NORTHUMBRIA HEALTHCARE NHS FOUNDATION TRUST",0,997,"NA","NA",0,0,0,0,0,0,0,0,0,0,0,0,0,{"$f":"IF(VLOOKUP($B17,[1]TrustCalcs!$B:$H,7,0)=1,\"*\",VLOOKUP($B17,'[1]Collection Mode'!$C:$O, 13, 0))","v":0}]
["QHM","R0B","SOUTH TYNESIDE AND SUNDERLAND NHS FOUNDATION TRUST",6,1492,1,0,5,1,0,0,0,0,0,0,0,0,6,0,0,{"$f":"IF(VLOOKUP($B18,[1]TrustCalcs!$B:$H,7,0)=1,\"*\",VLOOKUP($B18,'[1]Collection Mode'!$C:$O, 13, 0))","v":0}]
["QHM","RX3","TEES, ESK AND WEAR VALLEYS NHS FOUNDATION TRUST",702,104095,0.90170940170940173,2.8490028490028491E-2,435,198,33,14,6,16,32,151,0,491,0,0,28,{"$f":"IF(VLOOKUP($B19,[1]TrustCalcs!$B:$H,7,0)=1,\"*\",VLOOKUP($B19,'[1]Collection Mode'!$C:$O, 13, 0))","v":0}]
["QJ2","RXM","DERBYSHIRE HEALTHCARE NHS FOUNDATION TRUST",381,16539,0.90288713910761154,3.4120734908136482E-2,286,58,10,4,9,14,44,0,0,178,0,0,159,{"$f":"IF(VLOOKUP($B20,[1]TrustCalcs!$B:$H,7,0)=1,\"*\",VLOOKUP($B20,'[1]Collection Mode'!$C:$O, 13, 0))","v":0}]
["QJM","RP7","LINCOLNSHIRE PARTNERSHIP NHS FOUNDATION TRUST",479,4363,0.88935281837160751,2.9227557411273485E-2,285,141,31,5,9,8,13,51,0,415,0,0,0,{"$f":"IF(VLOOKUP($B21,[1]TrustCalcs!$B:$H,7,0)=1,\"*\",VLOOKUP($B21,'[1]Collection Mode'!$C:$O, 13, 0))","v":0}]
["QK1","RT5","LEICESTERSHIRE PARTNERSHIP NHS TRUST",942,21914,0.67197452229299359,0.20912951167728239,464,169,71,61,136,41,776,59,0,0,0,51,56,{"$f":"IF(VLOOKUP($B22,[1]TrustCalcs!$B:$H,7,0)=1,\"*\",VLOOKUP($B22,'[1]Collection Mode'!$C:$O, 13, 0))","v":0}]
["QKK","RPG","OXLEAS NHS FOUNDATION TRUST",616,8947,0.69967532467532467,0.14285714285714285,290,141,85,39,49,12,254,83,83,98,97,0,0,{"$f":"IF(VLOOKUP($B23,[1]TrustCalcs!$B:$H,7,0)=1,\"*\",VLOOKUP($B23,'[1]Collection Mode'!$C:$O, 13, 0))","v":1}]
["QKK","RV5","SOUTH LONDON AND MAUDSLEY NHS FOUNDATION TRUST",515,36664,0.86990291262135921,4.2718446601941747E-2,285,163,39,16,6,6,0,142,0,83,0,0,290,{"$f":"IF(VLOOKUP($B24,[1]TrustCalcs!$B:$H,7,0)=1,\"*\",VLOOKUP($B24,'[1]Collection Mode'!$C:$O, 13, 0))","v":0}]
["QKS","RXY","KENT AND MEDWAY NHS AND SOCIAL CARE PARTNERSHIP TRUST",641,15840,0.87831513260530425,2.9641185647425898E-2,370,193,31,10,9,28,0,0,0,628,0,0,13,{"$f":"IF(VLOOKUP($B25,[1]TrustCalcs!$B:$H,7,0)=1,\"*\",VLOOKUP($B25,'[1]Collection Mode'!$C:$O, 13, 0))","v":0}]
["QM7","RY4","HERTFORDSHIRE COMMUNITY NHS TRUST",39,739,0.94871794871794868,2.564102564102564E-2,31,6,1,1,0,0,34,0,0,5,0,0,0,{"$f":"IF(VLOOKUP($B26,[1]TrustCalcs!$B:$H,7,0)=1,\"*\",VLOOKUP($B26,'[1]Collection Mode'!$C:$O, 13, 0))","v":0}]
["QM7","RWR","HERTFORDSHIRE PARTNERSHIP UNIVERSITY NHS FOUNDATION TRUST",248,12813,0.88709677419354838,6.8548387096774188E-2,148,72,8,7,10,3,0,3,0,0,144,0,101,{"$f":"IF(VLOOKUP($B27,[1]TrustCalcs!$B:$H,7,0)=1,\"*\",VLOOKUP($B27,'[1]Collection Mode'!$C:$O, 13, 0))","v":0}]
["QMF","RWK","EAST LONDON NHS FOUNDATION TRUST",316,35049,0.81329113924050633,7.9113924050632917E-2,145,112,26,4,21,8,3,43,0,0,0,0,225,{"$f":"IF(VLOOKUP($B28,[1]TrustCalcs!$B:$H,7,0)=1,\"*\",VLOOKUP($B28,'[1]Collection Mode'!$C:$O, 13, 0))","v":45}]
["QMF","RAT","NORTH EAST LONDON NHS FOUNDATION TRUST",437,22507,0.78718535469107553,8.924485125858124E-2,241,103,43,21,18,11,0,0,0,0,0,0,437,{"$f":"IF(VLOOKUP($B29,[1]TrustCalcs!$B:$H,7,0)=1,\"*\",VLOOKUP($B29,'[1]Collection Mode'!$C:$O, 13, 0))","v":0}]
["QMJ","RRP","BARNET, ENFIELD AND HARINGEY MENTAL HEALTH NHS TRUST",619,8139,0.94184168012924074,1.4539579967689823E-2,342,241,27,0,9,0,0,12,0,0,0,0,607,{"$f":"IF(VLOOKUP($B30,[1]TrustCalcs!$B:$H,7,0)=1,\"*\",VLOOKUP($B30,'[1]Collection Mode'!$C:$O, 13, 0))","v":0}]
["QMJ","TAF","CAMDEN AND ISLINGTON NHS FOUNDATION TRUST",207,1827,0.893719806763285,5.7971014492753624E-2,134,51,6,6,6,4,0,1,0,0,28,0,178,{"$f":"IF(VLOOKUP($B31,[1]TrustCalcs!$B:$H,7,0)=1,\"*\",VLOOKUP($B31,'[1]Collection Mode'!$C:$O, 13, 0))","v":0}]
["QMJ","RV3","CENTRAL AND NORTH WEST LONDON NHS FOUNDATION TRUST",235,22797,0.76595744680851063,9.7872340425531917E-2,119,61,29,10,13,3,0,0,0,0,99,0,136,{"$f":"IF(VLOOKUP($B32,[1]TrustCalcs!$B:$H,7,0)=1,\"*\",VLOOKUP($B32,'[1]Collection Mode'!$C:$O, 13, 0))","v":0}]
["QMJ","RAL","ROYAL FREE LONDON NHS FOUNDATION TRUST",0,0,"NA","NA",0,0,0,0,0,0,0,0,0,0,0,0,0,{"$f":"IF(VLOOKUP($B33,[1]TrustCalcs!$B:$H,7,0)=1,\"*\",VLOOKUP($B33,'[1]Collection Mode'!$C:$O, 13, 0))","v":0}]
["QMJ","RNK","TAVISTOCK AND PORTMAN NHS FOUNDATION TRUST",55,3099,0.83636363636363631,3.6363636363636362E-2,"*","*","*","*","*","*","*","*","*","*","*","*","*",{"$f":"IF(VLOOKUP($B34,[1]TrustCalcs!$B:$H,7,0)=1,\"*\",VLOOKUP($B34,'[1]Collection Mode'!$C:$O, 13, 0))","v":"*"}]
["QMJ","RRV","UNIVERSITY COLLEGE LONDON HOSPITALS NHS FOUNDATION TRUST",4,4,"*","*","*","*","*","*","*","*","*","*","*","*","*","*","*",{"$f":"IF(VLOOKUP($B35,[1]TrustCalcs!$B:$H,7,0)=1,\"*\",VLOOKUP($B35,'[1]Collection Mode'!$C:$O, 13, 0))","v":"*"}]
["QMM","RMY","NORFOLK AND SUFFOLK NHS FOUNDATION TRUST",277,27971,0.59927797833935015,0.26353790613718414,121,45,31,22,51,7,0,0,0,0,0,0,0,{"$f":"IF(VLOOKUP($B36,[1]TrustCalcs!$B:$H,7,0)=1,\"*\",VLOOKUP($B36,'[1]Collection Mode'!$C:$O, 13, 0))","v":277}]
["QNC","RRE","MIDLANDS PARTNERSHIP NHS FOUNDATION TRUST",297,20651,0.84848484848484851,5.387205387205387E-2,187,65,27,3,13,2,0,0,5,0,0,0,292,{"$f":"IF(VLOOKUP($B37,[1]TrustCalcs!$B:$H,7,0)=1,\"*\",VLOOKUP($B37,'[1]Collection Mode'!$C:$O, 13, 0))","v":0}]
["QNC","RLY","NORTH STAFFORDSHIRE COMBINED HEALTHCARE NHS TRUST",122,15655,0.88524590163934425,3.2786885245901641E-2,98,10,4,0,4,6,0,0,0,0,75,0,47,{"$f":"IF(VLOOKUP($B38,[1]TrustCalcs!$B:$H,7,0)=1,\"*\",VLOOKUP($B38,'[1]Collection Mode'!$C:$O, 13, 0))","v":0}]
["QNQ","RWX","BERKSHIRE HEALTHCARE NHS FOUNDATION TRUST",785,6048,0.82292993630573252,0.1070063694267516,444,202,47,28,56,8,167,0,110,0,10,0,498,{"$f":"IF(VLOOKUP($B39,[1]TrustCalcs!$B:$H,7,0)=1,\"*\",VLOOKUP($B39,'[1]Collection Mode'!$C:$O, 13, 0))","v":0}]
["QNX","RX2","SUSSEX PARTNERSHIP NHS FOUNDATION TRUST",162,11589,0.76543209876543206,0.12345679012345678,80,44,14,11,9,4,0,0,0,0,0,0,162,{"$f":"IF(VLOOKUP($B40,[1]TrustCalcs!$B:$H,7,0)=1,\"*\",VLOOKUP($B40,'[1]Collection Mode'!$C:$O, 13, 0))","v":0}]
["QOP","RXV","GREATER MANCHESTER MENTAL HEALTH NHS FOUNDATION TRUST",552,21161,0.83333333333333337,9.2391304347826081E-2,358,102,34,18,33,7,0,0,0,0,0,0,0,{"$f":"IF(VLOOKUP($B41,[1]TrustCalcs!$B:$H,7,0)=1,\"*\",VLOOKUP($B41,'[1]Collection Mode'!$C:$O, 13, 0))","v":552}]
["QOP","RT2","PENNINE CARE NHS FOUNDATION TRUST",517,9726,0.90135396518375244,4.4487427466150871E-2,329,137,23,12,11,5,237,0,0,244,0,0,36,{"$f":"IF(VLOOKUP($B42,[1]TrustCalcs!$B:$H,7,0)=1,\"*\",VLOOKUP($B42,'[1]Collection Mode'!$C:$O, 13, 0))","v":0}]
["QOQ","RV9","HUMBER TEACHING NHS FOUNDATION TRUST",115,4192,0.92173913043478262,2.6086956521739129E-2,80,26,5,2,1,1,0,0,0,115,0,0,0,{"$f":"IF(VLOOKUP($B43,[1]TrustCalcs!$B:$H,7,0)=1,\"*\",VLOOKUP($B43,'[1]Collection Mode'!$C:$O, 13, 0))","v":0}]
["QOX","RVN","AVON AND WILTSHIRE MENTAL HEALTH PARTNERSHIP NHS TRUST",374,6184,0.87433155080213909,3.7433155080213901E-2,220,107,20,10,4,13,0,0,0,75,282,0,17,{"$f":"IF(VLOOKUP($B44,[1]TrustCalcs!$B:$H,7,0)=1,\"*\",VLOOKUP($B44,'[1]Collection Mode'!$C:$O, 13, 0))","v":0}]
["QPM","RP1","NORTHAMPTONSHIRE HEALTHCARE NHS FOUNDATION TRUST",517,6869,0.92069632495164411,3.4816247582205029E-2,414,62,6,1,17,17,0,0,21,0,445,0,51,{"$f":"IF(VLOOKUP($B45,[1]TrustCalcs!$B:$H,7,0)=1,\"*\",VLOOKUP($B45,'[1]Collection Mode'!$C:$O, 13, 0))","v":0}]
["QR1","RTQ","GLOUCESTERSHIRE HEALTH AND CARE NHS FOUNDATION TRUST",154,3422,0.91558441558441561,1.948051948051948E-2,104,37,8,1,2,2,0,0,0,0,0,0,154,{"$f":"IF(VLOOKUP($B46,[1]TrustCalcs!$B:$H,7,0)=1,\"*\",VLOOKUP($B46,'[1]Collection Mode'!$C:$O, 13, 0))","v":0}]
["QRL","R1F","ISLE OF WIGHT NHS TRUST",32,1966,1,0,26,6,0,0,0,0,0,0,0,0,32,0,0,{"$f":"IF(VLOOKUP($B47,[1]TrustCalcs!$B:$H,7,0)=1,\"*\",VLOOKUP($B47,'[1]Collection Mode'!$C:$O, 13, 0))","v":0}]
["QRL","R1C","SOLENT NHS TRUST",173,1799,0.95953757225433522,0,97,69,3,0,0,4,2,0,0,139,0,0,32,{"$f":"IF(VLOOKUP($B48,[1]TrustCalcs!$B:$H,7,0)=1,\"*\",VLOOKUP($B48,'[1]Collection Mode'!$C:$O, 13, 0))","v":0}]
["QRL","RW1","SOUTHERN HEALTH NHS FOUNDATION TRUST",279,11400,0.99641577060931896,0,276,2,0,0,0,1,0,0,0,0,83,0,196,{"$f":"IF(VLOOKUP($B49,[1]TrustCalcs!$B:$H,7,0)=1,\"*\",VLOOKUP($B49,'[1]Collection Mode'!$C:$O, 13, 0))","v":0}]
["QRV","RKL","WEST LONDON NHS TRUST",160,7683,0.92500000000000004,3.7499999999999999E-2,124,24,6,4,2,0,0,0,0,115,29,0,16,{"$f":"IF(VLOOKUP($B50,[1]TrustCalcs!$B:$H,7,0)=1,\"*\",VLOOKUP($B50,'[1]Collection Mode'!$C:$O, 13, 0))","v":0}]
["QSL","RH5","SOMERSET NHS FOUNDATION TRUST",59,6851,0.96610169491525422,0,37,20,2,0,0,0,0,0,0,0,0,0,59,{"$f":"IF(VLOOKUP($B51,[1]TrustCalcs!$B:$H,7,0)=1,\"*\",VLOOKUP($B51,'[1]Collection Mode'!$C:$O, 13, 0))","v":0}]
["QT1","RHA","NOTTINGHAMSHIRE HEALTHCARE NHS FOUNDATION TRUST",113,17139,0.69026548672566368,0.22123893805309736,55,23,8,10,15,2,0,0,0,0,113,0,0,{"$f":"IF(VLOOKUP($B52,[1]TrustCalcs!$B:$H,7,0)=1,\"*\",VLOOKUP($B52,'[1]Collection Mode'!$C:$O, 13, 0))","v":0}]
["QT6","RJ8","CORNWALL PARTNERSHIP NHS FOUNDATION TRUST",9,4495,1,0,4,5,0,0,0,0,0,0,0,1,0,0,8,{"$f":"IF(VLOOKUP($B53,[1]TrustCalcs!$B:$H,7,0)=1,\"*\",VLOOKUP($B53,'[1]Collection Mode'!$C:$O, 13, 0))","v":0}]
["QU9","RNU","OXFORD HEALTH NHS FOUNDATION TRUST",134,13581,0.88805970149253732,7.4626865671641784E-2,91,28,4,3,7,1,0,75,0,25,0,0,34,{"$f":"IF(VLOOKUP($B54,[1]TrustCalcs!$B:$H,7,0)=1,\"*\",VLOOKUP($B54,'[1]Collection Mode'!$C:$O, 13, 0))","v":0}]
["QUA","RXT","BIRMINGHAM AND SOLIHULL MENTAL HEALTH NHS FOUNDATION TRUST",163,18233,0.80368098159509205,8.5889570552147243E-2,78,53,16,7,7,2,0,0,0,150,0,0,13,{"$f":"IF(VLOOKUP($B55,[1]TrustCalcs!$B:$H,7,0)=1,\"*\",VLOOKUP($B55,'[1]Collection Mode'!$C:$O, 13, 0))","v":0}]
["QUA","TAJ","BLACK COUNTRY HEALTHCARE NHS FOUNDATION TRUST",218,17541,0.99541284403669728,0,190,27,0,0,0,1,0,0,0,0,0,0,0,{"$f":"IF(VLOOKUP($B56,[1]TrustCalcs!$B:$H,7,0)=1,\"*\",VLOOKUP($B56,'[1]Collection Mode'!$C:$O, 13, 0))","v":218}]
["QUA","RYK","DUDLEY INTEGRATED HEALTH AND CARE NHS TRUST",34,1624,0.97058823529411764,0,26,7,0,0,0,1,0,0,0,0,0,0,0,{"$f":"IF(VLOOKUP($B57,[1]TrustCalcs!$B:$H,7,0)=1,\"*\",VLOOKUP($B57,'[1]Collection Mode'!$C:$O, 13, 0))","v":34}]
["QUE","RT1","CAMBRIDGESHIRE AND PETERBOROUGH NHS FOUNDATION TRUST",230,2398,0.9,3.4782608695652174E-2,139,68,9,2,6,6,12,73,0,0,101,0,42,{"$f":"IF(VLOOKUP($B58,[1]TrustCalcs!$B:$H,7,0)=1,\"*\",VLOOKUP($B58,'[1]Collection Mode'!$C:$O, 13, 0))","v":2}]
["QVV","RDY","DORSET HEALTHCARE UNIVERSITY NHS FOUNDATION TRUST",397,7754,0.87153652392947101,6.5491183879093195E-2,241,105,17,12,14,8,40,18,0,0,41,0,298,{"$f":"IF(VLOOKUP($B59,[1]TrustCalcs!$B:$H,7,0)=1,\"*\",VLOOKUP($B59,'[1]Collection Mode'!$C:$O, 13, 0))","v":0}]
["QWE","RQY","SOUTH WEST LONDON AND ST GEORGE'S MENTAL HEALTH NHS TRUST",580,19125,0.81379310344827582,0.10517241379310345,381,91,20,20,41,27,257,268,0,0,0,0,0,{"$f":"IF(VLOOKUP($B60,[1]TrustCalcs!$B:$H,7,0)=1,\"*\",VLOOKUP($B60,'[1]Collection Mode'!$C:$O, 13, 0))","v":55}]
["QWO","TAD","BRADFORD DISTRICT CARE NHS FOUNDATION TRUST",94,9024,0.87234042553191493,8.5106382978723402E-2,"*","*","*","*","*","*","*","*","*","*","*","*","*",{"$f":"IF(VLOOKUP($B61,[1]TrustCalcs!$B:$H,7,0)=1,\"*\",VLOOKUP($B61,'[1]Collection Mode'!$C:$O, 13, 0))","v":"*"}]
["QWO","RGD","LEEDS AND YORK PARTNERSHIP NHS FOUNDATION TRUST",142,7625,0.95070422535211263,1.4084507042253521E-2,102,33,3,2,0,2,0,0,0,0,27,0,115,{"$f":"IF(VLOOKUP($B62,[1]TrustCalcs!$B:$H,7,0)=1,\"*\",VLOOKUP($B62,'[1]Collection Mode'!$C:$O, 13, 0))","v":0}]
["QWO","RY6","LEEDS COMMUNITY HEALTHCARE NHS TRUST",1,979,"*","*","*","*","*","*","*","*","*","*","*","*","*","*","*",{"$f":"IF(VLOOKUP($B63,[1]TrustCalcs!$B:$H,7,0)=1,\"*\",VLOOKUP($B63,'[1]Collection Mode'!$C:$O, 13, 0))","v":"*"}]
["QWO","RXG","SOUTH WEST YORKSHIRE PARTNERSHIP NHS FOUNDATION TRUST",777,11688,0.80566280566280568,0.11325611325611326,500,126,47,34,54,16,594,21,0,0,61,0,101,{"$f":"IF(VLOOKUP($B64,[1]TrustCalcs!$B:$H,7,0)=1,\"*\",VLOOKUP($B64,'[1]Collection Mode'!$C:$O, 13, 0))","v":0}]
["QWU","RYG","COVENTRY AND WARWICKSHIRE PARTNERSHIP NHS TRUST",0,0,"NA","NA",0,0,0,0,0,0,0,0,0,0,0,0,0,{"$f":"IF(VLOOKUP($B65,[1]TrustCalcs!$B:$H,7,0)=1,\"*\",VLOOKUP($B65,'[1]Collection Mode'!$C:$O, 13, 0))","v":0}]
["QXU","RXX","SURREY AND BORDERS PARTNERSHIP NHS FOUNDATION TRUST",239,9190,0.94979079497907948,1.6736401673640166E-2,169,58,5,2,2,3,0,65,0,100,0,0,74,{"$f":"IF(VLOOKUP($B66,[1]TrustCalcs!$B:$H,7,0)=1,\"*\",VLOOKUP($B66,'[1]Collection Mode'!$C:$O, 13, 0))","v":0}]
["QYG","RBS","ALDER HEY CHILDREN'S NHS FOUNDATION TRUST",28,684,0.9642857142857143,3.5714285714285712E-2,23,4,0,0,1,0,28,0,0,0,0,0,0,{"$f":"IF(VLOOKUP($B67,[1]TrustCalcs!$B:$H,7,0)=1,\"*\",VLOOKUP($B67,'[1]Collection Mode'!$C:$O, 13, 0))","v":0}]
["QYG","RXA","CHESHIRE AND WIRRAL PARTNERSHIP NHS FOUNDATION TRUST",264,3,0.89015151515151514,6.4393939393939392E-2,207,28,8,5,12,4,264,0,0,0,0,0,0,{"$f":"IF(VLOOKUP($B68,[1]TrustCalcs!$B:$H,7,0)=1,\"*\",VLOOKUP($B68,'[1]Collection Mode'!$C:$O, 13, 0))","v":0}]
["QYG","RW4","MERSEY CARE NHS FOUNDATION TRUST",553,19902,0.88245931283905965,4.701627486437613E-2,321,167,33,12,14,6,0,409,0,139,0,0,5,{"$f":"IF(VLOOKUP($B69,[1]TrustCalcs!$B:$H,7,0)=1,\"*\",VLOOKUP($B69,'[1]Collection Mode'!$C:$O, 13, 0))","v":0}]
["IS1","NNF","CITY HEALTH CARE PARTNERSHIP CIC",127,3490,0.952755905511811,1.5748031496062992E-2,104,17,3,1,1,1,0,0,0,29,0,0,82,{"$f":"IF(VLOOKUP($B70,[1]TrustCalcs!$B:$H,7,0)=1,\"*\",VLOOKUP($B70,'[1]Collection Mode'!$C:$O, 13, 0))","v":16}]
["IS1","NDK","FRESHNEY PELHAM CARE LIMITED",5,10,1,0,1,4,0,0,0,0,0,0,0,5,0,0,0,{"$f":"IF(VLOOKUP($B71,[1]TrustCalcs!$B:$H,7,0)=1,\"*\",VLOOKUP($B71,'[1]Collection Mode'!$C:$O, 13, 0))","v":0}]
["IS1","NR5","LIVEWELL SOUTHWEST",172,2108,0.77906976744186052,6.9767441860465115E-2,63,71,20,7,5,6,28,0,0,108,0,0,36,{"$f":"IF(VLOOKUP($B72,[1]TrustCalcs!$B:$H,7,0)=1,\"*\",VLOOKUP($B72,'[1]Collection Mode'!$C:$O, 13, 0))","v":0}]
["IS1","NQL","NAVIGO HEALTH AND SOCIAL CARE CIC",303,2534,0.95049504950495045,1.9801980198019802E-2,251,37,6,3,3,3,0,0,0,0,0,0,0,{"$f":"IF(VLOOKUP($B73,[1]TrustCalcs!$B:$H,7,0)=1,\"*\",VLOOKUP($B73,'[1]Collection Mode'!$C:$O, 13, 0))","v":303}]
["IS1","O2F3D","SUTTON MENTAL HEALTH FOUNDATION ",7,33,1,0,5,2,0,0,0,0,0,0,0,0,7,0,0,{"$f":"IF(VLOOKUP($B74,[1]TrustCalcs!$B:$H,7,0)=1,\"*\",VLOOKUP($B74,'[1]Collection Mode'!$C:$O, 13, 0))","v":0}]
["IS1","NV2","THE HUNTERCOMBE GROUP",7,457,0.8571428571428571,0,3,3,1,0,0,0,0,0,7,0,0,0,0,{"$f":"IF(VLOOKUP($B75,[1]TrustCalcs!$B:$H,7,0)=1,\"*\",VLOOKUP($B75,'[1]Collection Mode'!$C:$O, 13, 0))","v":0}]

{"sheet":"Categories","index":4,"n_rows":282,"n_cols":13,"rows_kept":282,"cut":false,"hidden":false,"merged":[[2,6,3,6],[2,7,2,12],[2,0,3,0],[2,1,3,1],[2,2,3,2],[2,3,3,3],[2,4,3,4],[2,5,3,5]]}
[]
[]
["STP Code","Trust Code","Trust Name","Service Category Provided","Total Responses","Percentage Positive","Percentage Negative","Breakdown of Responses"]
[null,null,null,null,null,null,null,"Very Good","Good","Neither Good nor Poor","Poor","Very Poor","Don't Know"]
[null,null,null,"England (including Independent Sector Providers)",16985,0.85758021783926996,6.9237562555195767E-2,10668,3898,915,457,719,328]
[null,null,null,"England (excluding Independent Sector Providers)",16364,0.85584209239794673,7.0642874602786607E-2,10241,3764,885,446,710,318]
[null,null,null,"Selection (excluding suppressed data)",{"$f":"SUBTOTAL(9,E8:E667)","v":16985},{"$f":"IFERROR((H7+I7)/SUM(H7:M7), \"-\")","v":0.85777321083172142},{"$f":"IFERROR((K7+L7)/SUM(H7:M7), \"-\")","v":6.9572050290135398E-2},{"$f":"SUBTOTAL(9,H8:H667)","v":10401},3790,890,441,710,312]
["QE1","RXL","BLACKPOOL TEACHING HOSPITALS NHS FOUNDATION TRUST","Secondary Care Community Services",54,1,0,42,12,0,0,0,0]
["QE1","RW5","LANCASHIRE & SOUTH CUMBRIA NHS FOUNDATION TRUST","Acute Services",118,0.9576271186440678,8.4745762711864406E-3,86,27,4,1,0,0]
["QE1","RW5","LANCASHIRE & SOUTH CUMBRIA NHS FOUNDATION TRUST","Child & Adolescent Mental Health Services",151,0.99337748344370858,0,134,16,1,0,0,0]
["QE1","RW5","LANCASHIRE & SOUTH CUMBRIA NHS FOUNDATION TRUST","Mental Health Other",4,"*","*","*","*","*","*","*","*"]
["QE1","RW5","LANCASHIRE & SOUTH CUMBRIA NHS FOUNDATION TRUST","Secondary Care Community Services",280,0.9642857142857143,1.4285714285714285E-2,233,37,6,2,2,0]
["QE1","RW5","LANCASHIRE & SOUTH CUMBRIA NHS FOUNDATION TRUST","Secure & Forensic Services",4,"*","*","*","*","*","*","*","*"]
["QE1","RW5","LANCASHIRE & SOUTH CUMBRIA NHS FOUNDATION TRUST","Specialist Services",261,0.96168582375478928,1.1494252873563218E-2,218,33,7,1,2,0]
["QF7","RXE","ROTHERHAM DONCASTER AND SOUTH HUMBER NHS FOUNDATION TRUST","Acute Services",4,"*","*","*","*","*","*","*","*"]
["QF7","RXE","ROTHERHAM DONCASTER AND SOUTH HUMBER NHS FOUNDATION TRUST","Child & Adolescent Mental Health Services",3,"*","*","*","*","*","*","*","*"]
["QF7","RXE","ROTHERHAM DONCASTER AND SOUTH HUMBER NHS FOUNDATION TRUST","Primary Care",62,0.95161290322580649,0,46,13,3,0,0,0]
["QF7","RXE","ROTHERHAM DONCASTER AND SOUTH HUMBER NHS FOUNDATION TRUST","Secondary Care Community Services",6,1,0,6,0,0,0,0,0]
["QF7","RXE","ROTHERHAM DONCASTER AND SOUTH HUMBER NHS FOUNDATION TRUST","Specialist Services",11,1,0,11,0,0,0,0,0]
["QF7","RCU","SHEFFIELD CHILDREN'S NHS FOUNDATION TRUST","Child & Adolescent Mental Health Services",1,"*","*","*","*","*","*","*","*"]
["QF7","TAH","SHEFFIELD HEALTH & SOCIAL CARE NHS FOUNDATION TRUST","Mental Health Other",36,0.86111111111111116,2.7777777777777776E-2,14,17,4,1,0,0]
["QF7","TAH","SHEFFIELD HEALTH & SOCIAL CARE NHS FOUNDATION TRUST","Secondary Care Community Services",74,0.97297297297297303,1.3513513513513514E-2,57,15,1,1,0,0]
["QF7","TAH","SHEFFIELD HEALTH & SOCIAL CARE NHS FOUNDATION TRUST","Specialist Services",28,0.9642857142857143,0,18,9,1,0,0,0]
["QGH","R1A","HEREFORDSHIRE AND WORCESTERSHIRE HEALTH AND CARE NHS TRUST","Child & Adolescent Mental Health Services",6,0.5,0.5,2,1,0,2,1,0]
["QGH","R1A","HEREFORDSHIRE AND WORCESTERSHIRE HEALTH AND CARE NHS TRUST","Mental Health Other",1,"*","*","*","*","*","*","*","*"]
["QGH","R1A","HEREFORDSHIRE AND WORCESTERSHIRE HEALTH AND CARE NHS TRUST","Primary Care",19,0.42105263157894735,0.47368421052631576,6,2,2,2,7,0]
["QGH","R1A","HEREFORDSHIRE AND WORCESTERSHIRE HEALTH AND CARE NHS TRUST","Secondary Care Community Services",7,0.5714285714285714,0.42857142857142855,3,1,0,1,2,0]
["QGH","R1A","HEREFORDSHIRE AND WORCESTERSHIRE HEALTH AND CARE NHS TRUST","Specialist Services",2,"*","*","*","*","*","*","*","*"]
["QH8","R1L","ESSEX PARTNERSHIP UNIVERSITY NHS FOUNDATION TRUST","Primary Care",1,"*","*","*","*","*","*","*","*"]
["QH8","R1L","ESSEX PARTNERSHIP UNIVERSITY NHS FOUNDATION TRUST","Secondary Care Community Services",12,1,0,"*","*","*","*","*","*"]
["QHM","RX4","CUMBRIA, NORTHUMBERLAND, TYNE AND WEAR NHS FOUNDATION TRUST","Acute Services",12,0.58333333333333337,0.33333333333333331,4,3,1,0,4,0]
["QHM","RX4","CUMBRIA, NORTHUMBERLAND, TYNE AND WEAR NHS FOUNDATION TRUST","Child & Adolescent Mental Health Services",6,1,0,4,2,0,0,0,0]
["QHM","RX4","CUMBRIA, NORTHUMBERLAND, TYNE AND WEAR NHS FOUNDATION TRUST","Mental Health Other",26,0.88461538461538458,3.8461538461538464E-2,22,1,2,0,1,0]
["QHM","RX4","CUMBRIA, NORTHUMBERLAND, TYNE AND WEAR NHS FOUNDATION TRUST","Secondary Care Community Services",136,0.83088235294117652,0.10294117647058823,86,27,9,5,9,0]
["QHM","RX4","CUMBRIA, NORTHUMBERLAND, TYNE AND WEAR NHS FOUNDATION TRUST","Secure & Forensic Services",13,0.92307692307692313,7.6923076923076927E-2,5,7,0,0,1,0]
["QHM","RX4","CUMBRIA, NORTHUMBERLAND, TYNE AND WEAR NHS FOUNDATION TRUST","Specialist Services",33,0.96969696969696972,3.0303030303030304E-2,24,8,0,0,1,0]
["QHM","R0B","SOUTH TYNESIDE AND SUNDERLAND NHS FOUNDATION TRUST","Child & Adolescent Mental Health Services",6,1,0,5,1,0,0,0,0]
["QHM","RX3","TEES, ESK AND WEAR VALLEYS NHS FOUNDATION TRUST","Acute Services",134,0.90298507462686572,5.9701492537313432E-2,78,43,4,6,2,1]
["QHM","RX3","TEES, ESK AND WEAR VALLEYS NHS FOUNDATION TRUST","Child & Adolescent Mental Health Services",76,0.96052631578947367,1.3157894736842105E-2,41,32,0,0,1,2]
["QHM","RX3","TEES, ESK AND WEAR VALLEYS NHS FOUNDATION TRUST","Mental Health Other",1,"*","*","*","*","*","*","*","*"]
["QHM","RX3","TEES, ESK AND WEAR VALLEYS NHS FOUNDATION TRUST","Primary Care",114,0.92105263157894735,1.7543859649122806E-2,96,9,6,1,1,1]
["QHM","RX3","TEES, ESK AND WEAR VALLEYS NHS FOUNDATION TRUST","Secondary Care Community Services",251,0.90039840637450197,7.9681274900398405E-3,155,71,20,1,1,3]
["QHM","RX3","TEES, ESK AND WEAR VALLEYS NHS FOUNDATION TRUST","Secure & Forensic Services",97,0.83505154639175261,5.1546391752577317E-2,48,33,2,4,1,9]
["QHM","RX3","TEES, ESK AND WEAR VALLEYS NHS FOUNDATION TRUST","Specialist Services",29,0.89655172413793105,6.8965517241379309E-2,"*","*","*","*","*","*"]
["QJ2","RXM","DERBYSHIRE HEALTHCARE NHS FOUNDATION TRUST","Acute Services",27,0.70370370370370372,0.18518518518518517,13,6,2,0,5,1]
["QJ2","RXM","DERBYSHIRE HEALTHCARE NHS FOUNDATION TRUST","Child & Adolescent Mental Health Services",8,1,0,6,2,0,0,0,0]
["QJ2","RXM","DERBYSHIRE HEALTHCARE NHS FOUNDATION TRUST","Mental Health Other",44,0.61363636363636365,9.0909090909090912E-2,27,0,3,1,3,10]
["QJ2","RXM","DERBYSHIRE HEALTHCARE NHS FOUNDATION TRUST","Primary Care",178,0.9887640449438202,0,161,15,2,0,0,0]
["QJ2","RXM","DERBYSHIRE HEALTHCARE NHS FOUNDATION TRUST","Secondary Care Community Services",112,0.9285714285714286,2.6785714285714284E-2,72,32,3,2,1,2]
["QJ2","RXM","DERBYSHIRE HEALTHCARE NHS FOUNDATION TRUST","Specialist Services",12,0.83333333333333337,8.3333333333333329E-2,7,3,0,1,0,1]
["QJM","RP7","LINCOLNSHIRE PARTNERSHIP NHS FOUNDATION TRUST","Acute Services",51,0.90196078431372551,1.9607843137254902E-2,"*","*","*","*","*","*"]
["QJM","RP7","LINCOLNSHIRE PARTNERSHIP NHS FOUNDATION TRUST","Child & Adolescent Mental Health Services",84,0.86904761904761907,2.3809523809523808E-2,38,35,5,0,2,4]
["QJM","RP7","LINCOLNSHIRE PARTNERSHIP NHS FOUNDATION TRUST","Mental Health Other",133,0.93233082706766912,2.2556390977443608E-2,88,36,5,2,1,1]
["QJM","RP7","LINCOLNSHIRE PARTNERSHIP NHS FOUNDATION TRUST","Primary Care",74,0.79729729729729726,1.3513513513513514E-2,39,20,13,0,1,1]
["QJM","RP7","LINCOLNSHIRE PARTNERSHIP NHS FOUNDATION TRUST","Secondary Care Community Services",68,0.88235294117647056,7.3529411764705885E-2,46,14,2,1,4,1]
["QJM","RP7","LINCOLNSHIRE PARTNERSHIP NHS FOUNDATION TRUST","Secure & Forensic Services",2,"*","*","*","*","*","*","*","*"]
["QJM","RP7","LINCOLNSHIRE PARTNERSHIP NHS FOUNDATION TRUST","Specialist Services",67,0.92537313432835822,2.9850746268656716E-2,39,23,3,1,1,0]
["QK1","RT5","LEICESTERSHIRE PARTNERSHIP NHS TRUST","Acute Services",65,0.84615384615384615,9.2307692307692313E-2,37,18,4,2,4,0]
["QK1","RT5","LEICESTERSHIRE PARTNERSHIP NHS TRUST","Child & Adolescent Mental Health Services",177,0.70056497175141241,0.21468926553672316,95,29,14,14,24,1]
["QK1","RT5","LEICESTERSHIRE PARTNERSHIP NHS TRUST","Secondary Care Community Services",617,0.6337115072933549,0.22690437601296595,282,109,48,42,98,38]
["QK1","RT5","LEICESTERSHIRE PARTNERSHIP NHS TRUST","Specialist Services",83,0.75903614457831325,0.15662650602409639,50,13,5,3,10,2]
["QKK","RPG","OXLEAS NHS FOUNDATION TRUST","Acute Services",111,0.76576576576576572,6.3063063063063057E-2,45,40,16,5,2,3]
["QKK","RPG","OXLEAS NHS FOUNDATION TRUST","Child & Adolescent Mental Health Services",36,0.72222222222222221,0.16666666666666666,18,8,4,1,5,0]
["QKK","RPG","OXLEAS NHS FOUNDATION TRUST","Primary Care",47,0.74468085106382975,6.3829787234042548E-2,30,5,8,2,1,1]
["QKK","RPG","OXLEAS NHS FOUNDATION TRUST","Secondary Care Community Services",243,0.64609053497942381,0.23456790123456789,100,57,23,24,33,6]
["QKK","RPG","OXLEAS NHS FOUNDATION TRUST","Secure & Forensic Services",94,0.55319148936170215,0.13829787234042554,34,18,29,6,7,0]
["QKK","RPG","OXLEAS NHS FOUNDATION TRUST","Specialist Services",85,0.89411764705882357,2.3529411764705882E-2,63,13,5,1,1,2]
["QKK","RV5","SOUTH LONDON AND MAUDSLEY NHS FOUNDATION TRUST","Acute Services",166,0.81927710843373491,6.6265060240963861E-2,61,75,17,7,4,2]
["QKK","RV5","SOUTH LONDON AND MAUDSLEY NHS FOUNDATION TRUST","Child & Adolescent Mental Health Services",53,0.98113207547169812,1.8867924528301886E-2,44,8,0,1,0,0]
["QKK","RV5","SOUTH LONDON AND MAUDSLEY NHS FOUNDATION TRUST","Primary Care",21,0.95238095238095233,0,17,3,1,0,0,0]
["QKK","RV5","SOUTH LONDON AND MAUDSLEY NHS FOUNDATION TRUST","Secondary Care Community Services",234,0.87179487179487181,3.8461538461538464E-2,136,68,17,7,2,4]
["QKK","RV5","SOUTH LONDON AND MAUDSLEY NHS FOUNDATION TRUST","Secure & Forensic Services",17,0.88235294117647056,5.8823529411764705E-2,9,6,1,1,0,0]
["QKK","RV5","SOUTH LONDON AND MAUDSLEY NHS FOUNDATION TRUST","Specialist Services",24,0.875,0,18,3,3,0,0,0]
["QKS","RXY","KENT AND MEDWAY NHS AND SOCIAL CARE PARTNERSHIP TRUST","Acute Services",112,0.9017857142857143,1.7857142857142856E-2,64,37,4,2,0,5]
["QKS","RXY","KENT AND MEDWAY NHS AND SOCIAL CARE PARTNERSHIP TRUST","Mental Health Other",1,"*","*","*","*","*","*","*","*"]
["QKS","RXY","KENT AND MEDWAY NHS AND SOCIAL CARE PARTNERSHIP TRUST","Secondary Care Community Services",450,0.86444444444444446,3.5555555555555556E-2,249,140,25,8,8,20]
["QKS","RXY","KENT AND MEDWAY NHS AND SOCIAL CARE PARTNERSHIP TRUST","Secure & Forensic Services",13,0.69230769230769229,0,"*","*","*","*","*","*"]
["QKS","RXY","KENT AND MEDWAY NHS AND SOCIAL CARE PARTNERSHIP TRUST","Specialist Services",65,0.96923076923076923,1.5384615384615385E-2,51,12,0,0,1,1]
["QM7","RY4","HERTFORDSHIRE COMMUNITY NHS TRUST","Child & Adolescent Mental Health Services",39,0.94871794871794868,2.564102564102564E-2,31,6,1,1,0,0]
["QM7","RWR","HERTFORDSHIRE PARTNERSHIP UNIVERSITY NHS FOUNDATION TRUST","Acute Services",95,0.84210526315789469,7.3684210526315783E-2,41,39,7,3,4,1]
["QM7","RWR","HERTFORDSHIRE PARTNERSHIP UNIVERSITY NHS FOUNDATION TRUST","Child & Adolescent Mental Health Services",19,0.73684210526315785,0.26315789473684209,10,4,0,1,4,0]
["QM7","RWR","HERTFORDSHIRE PARTNERSHIP UNIVERSITY NHS FOUNDATION TRUST","Mental Health Other",3,"*","*","*","*","*","*","*","*"]
["QM7","RWR","HERTFORDSHIRE PARTNERSHIP UNIVERSITY NHS FOUNDATION TRUST","Primary Care",61,0.91803278688524592,4.9180327868852458E-2,42,14,1,2,1,1]
["QM7","RWR","HERTFORDSHIRE PARTNERSHIP UNIVERSITY NHS FOUNDATION TRUST","Secondary Care Community Services",42,0.97619047619047616,2.3809523809523808E-2,30,11,0,0,1,0]
["QM7","RWR","HERTFORDSHIRE PARTNERSHIP UNIVERSITY NHS FOUNDATION TRUST","Secure & Forensic Services",1,"*","*","*","*","*","*","*","*"]
["QM7","RWR","HERTFORDSHIRE PARTNERSHIP UNIVERSITY NHS FOUNDATION TRUST","Specialist Services",27,1,0,24,3,0,0,0,0]
["QMF","RWK","EAST LONDON NHS FOUNDATION TRUST","Acute Services",142,0.80281690140845074,4.9295774647887321E-2,59,55,17,1,6,4]
["QMF","RWK","EAST LONDON NHS FOUNDATION TRUST","Child & Adolescent Mental Health Services",34,0.8529411764705882,2.9411764705882353E-2,0,29,3,0,1,1]
["QMF","RWK","EAST LONDON NHS FOUNDATION TRUST","Mental Health Other",31,0.61290322580645162,0.29032258064516131,13,6,1,0,9,2]
["QMF","RWK","EAST LONDON NHS FOUNDATION TRUST","Primary Care",11,1,0,10,1,0,0,0,0]
["QMF","RWK","EAST LONDON NHS FOUNDATION TRUST","Secondary Care Community Services",86,0.86046511627906974,9.3023255813953487E-2,56,18,4,3,5,0]
["QMF","RWK","EAST LONDON NHS FOUNDATION TRUST","Secure & Forensic Services",3,"*","*","*","*","*","*","*","*"]
["QMF","RWK","EAST LONDON NHS FOUNDATION TRUST","Specialist Services",9,0.77777777777777779,0,"*","*","*","*","*","*"]
["QMF","RAT","NORTH EAST LONDON NHS FOUNDATION TRUST","Acute Services",19,0.68421052631578949,0.15789473684210525,10,3,3,2,1,0]
["QMF","RAT","NORTH EAST LONDON NHS FOUNDATION TRUST","Child & Adolescent Mental Health Services",178,0.7921348314606742,6.741573033707865E-2,97,44,18,9,3,7]
["QMF","RAT","NORTH EAST LONDON NHS FOUNDATION TRUST","Primary Care",151,0.85430463576158944,5.2980132450331126E-2,90,39,12,5,3,2]
["QMF","RAT","NORTH EAST LONDON NHS FOUNDATION TRUST","Secondary Care Community Services",60,0.66666666666666663,0.23333333333333334,30,10,5,4,10,1]
["QMF","RAT","NORTH EAST LONDON NHS FOUNDATION TRUST","Specialist Services",29,0.72413793103448276,6.8965517241379309E-2,14,7,5,1,1,1]
["QMJ","RRP","BARNET, ENFIELD AND HARINGEY MENTAL HEALTH NHS TRUST","Acute Services",139,0.8848920863309353,2.1582733812949641E-2,49,74,13,0,3,0]
["QMJ","RRP","BARNET, ENFIELD AND HARINGEY MENTAL HEALTH NHS TRUST","Child & Adolescent Mental Health Services",32,0.875,9.375E-2,16,12,1,0,3,0]
["QMJ","RRP","BARNET, ENFIELD AND HARINGEY MENTAL HEALTH NHS TRUST","Primary Care",38,1,0,32,6,0,0,0,0]
["QMJ","RRP","BARNET, ENFIELD AND HARINGEY MENTAL HEALTH NHS TRUST","Secondary Care Community Services",310,0.95483870967741935,9.6774193548387101E-3,190,106,11,0,3,0]
["QMJ","RRP","BARNET, ENFIELD AND HARINGEY MENTAL HEALTH NHS TRUST","Secure & Forensic Services",82,0.97560975609756095,0,42,38,2,0,0,0]
["QMJ","RRP","BARNET, ENFIELD AND HARINGEY MENTAL HEALTH NHS TRUST","Specialist Services",18,1,0,13,5,0,0,0,0]
["QMJ","TAF","CAMDEN AND ISLINGTON NHS FOUNDATION TRUST","Acute Services",27,0.55555555555555558,0.33333333333333331,"*","*","*","*","*","*"]
["QMJ","TAF","CAMDEN AND ISLINGTON NHS FOUNDATION TRUST","Primary Care",47,1,0,39,8,0,0,0,0]
["QMJ","TAF","CAMDEN AND ISLINGTON NHS FOUNDATION TRUST","Secondary Care Community Services",131,0.92366412213740456,2.2900763358778626E-2,87,34,4,1,2,3]
["QMJ","TAF","CAMDEN AND ISLINGTON NHS FOUNDATION TRUST","Specialist Services",2,"*","*","*","*","*","*","*","*"]
["QMJ","RV3","CENTRAL AND NORTH WEST LONDON NHS FOUNDATION TRUST","Acute Services",101,0.67326732673267331,0.10891089108910891,40,28,20,4,7,2]
["QMJ","RV3","CENTRAL AND NORTH WEST LONDON NHS FOUNDATION TRUST","Child & Adolescent Mental Health Services",20,0.9,0.05,13,5,1,0,1,0]
["QMJ","RV3","CENTRAL AND NORTH WEST LONDON NHS FOUNDATION TRUST","Mental Health Other",2,"*","*","*","*","*","*","*","*"]
["QMJ","RV3","CENTRAL AND NORTH WEST LONDON NHS FOUNDATION TRUST","Primary Care",1,"*","*","*","*","*","*","*","*"]
["QMJ","RV3","CENTRAL AND NORTH WEST LONDON NHS FOUNDATION TRUST","Secondary Care Community Services",89,0.797752808988764,0.11235955056179775,48,23,7,6,4,1]
["QMJ","RV3","CENTRAL AND NORTH WEST LONDON NHS FOUNDATION TRUST","Specialist Services",22,0.90909090909090906,4.5454545454545456E-2,15,5,1,0,1,0]
["QMJ","RNK","TAVISTOCK AND PORTMAN NHS FOUNDATION TRUST","Mental Health Other",55,0.83636363636363631,3.6363636363636362E-2,"*","*","*","*","*","*"]
["QMJ","RRV","UNIVERSITY COLLEGE LONDON HOSPITALS NHS FOUNDATION TRUST","Mental Health Other",4,"*","*","*","*","*","*","*","*"]
["QMM","RMY","NORFOLK AND SUFFOLK NHS FOUNDATION TRUST","Acute Services",26,0.65384615384615385,7.6923076923076927E-2,11,6,7,2,0,0]
["QMM","RMY","NORFOLK AND SUFFOLK NHS FOUNDATION TRUST","Child & Adolescent Mental Health Services",2,"*","*","*","*","*","*","*","*"]
["QMM","RMY","NORFOLK AND SUFFOLK NHS FOUNDATION TRUST","Secondary Care Community Services",220,0.5636363636363636,0.30909090909090908,91,33,21,19,49,7]
["QMM","RMY","NORFOLK AND SUFFOLK NHS FOUNDATION TRUST","Secure & Forensic Services",3,"*","*","*","*","*","*","*","*"]
["QMM","RMY","NORFOLK AND SUFFOLK NHS FOUNDATION TRUST","Specialist Services",26,0.76923076923076927,0.11538461538461539,14,6,3,1,2,0]
["QNC","RRE","MIDLANDS PARTNERSHIP NHS FOUNDATION TRUST","Acute Services",59,0.72881355932203384,6.7796610169491525E-2,28,15,12,1,3,0]
["QNC","RRE","MIDLANDS PARTNERSHIP NHS FOUNDATION TRUST","Child & Adolescent Mental Health Services",31,0.83870967741935487,0,21,5,4,0,0,1]
["QNC","RRE","MIDLANDS PARTNERSHIP NHS FOUNDATION TRUST","Mental Health Other",64,0.9375,1.5625E-2,45,15,3,1,0,0]
["QNC","RRE","MIDLANDS PARTNERSHIP NHS FOUNDATION TRUST","Primary Care",23,0.82608695652173914,4.3478260869565216E-2,16,3,3,0,1,0]
["QNC","RRE","MIDLANDS PARTNERSHIP NHS FOUNDATION TRUST","Secondary Care Community Services",86,0.86046511627906974,9.3023255813953487E-2,58,16,3,1,7,1]
["QNC","RRE","MIDLANDS PARTNERSHIP NHS FOUNDATION TRUST","Secure & Forensic Services",17,0.82352941176470584,5.8823529411764705E-2,5,9,2,0,1,0]
["QNC","RRE","MIDLANDS PARTNERSHIP NHS FOUNDATION TRUST","Specialist Services",17,0.94117647058823528,5.8823529411764705E-2,14,2,0,0,1,0]
["QNC","RLY","NORTH STAFFORDSHIRE COMBINED HEALTHCARE NHS TRUST","Acute Services",23,0.91304347826086951,0,21,0,0,0,0,2]
["QNC","RLY","NORTH STAFFORDSHIRE COMBINED HEALTHCARE NHS TRUST","Child & Adolescent Mental Health Services",8,0.625,0.125,4,1,1,0,1,1]
["QNC","RLY","NORTH STAFFORDSHIRE COMBINED HEALTHCARE NHS TRUST","Mental Health Other",13,0.76923076923076927,7.6923076923076927E-2,9,1,2,0,1,0]
["QNC","RLY","NORTH STAFFORDSHIRE COMBINED HEALTHCARE NHS TRUST","Primary Care",6,0.66666666666666663,0.33333333333333331,3,1,0,0,2,0]
["QNC","RLY","NORTH STAFFORDSHIRE COMBINED HEALTHCARE NHS TRUST","Secondary Care Community Services",65,0.9538461538461539,0,56,6,0,0,0,3]
["QNC","RLY","NORTH STAFFORDSHIRE COMBINED HEALTHCARE NHS TRUST","Specialist Services",7,0.8571428571428571,0,5,1,1,0,0,0]
["QNQ","RWX","BERKSHIRE HEALTHCARE NHS FOUNDATION TRUST","Acute Services",18,0.88888888888888884,0,11,5,2,0,0,0]
["QNQ","RWX","BERKSHIRE HEALTHCARE NHS FOUNDATION TRUST","Child & Adolescent Mental Health Services",43,0.81395348837209303,0.13953488372093023,25,10,2,2,4,0]
["QNQ","RWX","BERKSHIRE HEALTHCARE NHS FOUNDATION TRUST","Mental Health Other",7,0.7142857142857143,0.14285714285714285,4,1,1,1,0,0]
["QNQ","RWX","BERKSHIRE HEALTHCARE NHS FOUNDATION TRUST","Primary Care",375,0.77866666666666662,0.13333333333333333,180,112,31,18,32,2]
["QNQ","RWX","BERKSHIRE HEALTHCARE NHS FOUNDATION TRUST","Secondary Care Community Services",168,0.88690476190476186,7.1428571428571425E-2,130,19,5,3,9,2]
["QNQ","RWX","BERKSHIRE HEALTHCARE NHS FOUNDATION TRUST","Specialist Services",174,0.85632183908045978,8.6206896551724144E-2,94,55,6,4,11,4]
["QNX","RX2","SUSSEX PARTNERSHIP NHS FOUNDATION TRUST","Acute Services",17,0.58823529411764708,0.17647058823529413,5,5,3,2,1,1]
["QNX","RX2","SUSSEX PARTNERSHIP NHS FOUNDATION TRUST","Child & Adolescent Mental Health Services",9,0.66666666666666663,0.33333333333333331,6,0,0,1,2,0]
["QNX","RX2","SUSSEX PARTNERSHIP NHS FOUNDATION TRUST","Mental Health Other",22,0.77272727272727271,0.13636363636363635,16,1,0,2,1,2]
["QNX","RX2","SUSSEX PARTNERSHIP NHS FOUNDATION TRUST","Secondary Care Community Services",111,0.7927927927927928,9.90990990990991E-2,50,38,11,6,5,1]
["QNX","RX2","SUSSEX PARTNERSHIP NHS FOUNDATION TRUST","Secure & Forensic Services",1,"*","*","*","*","*","*","*","*"]
["QNX","RX2","SUSSEX PARTNERSHIP NHS FOUNDATION TRUST","Specialist Services",2,"*","*","*","*","*","*","*","*"]
["QOP","RXV","GREATER MANCHESTER MENTAL HEALTH NHS FOUNDATION TRUST","Acute Services",108,0.75,0.12962962962962962,48,33,13,8,6,0]
["QOP","RXV","GREATER MANCHESTER MENTAL HEALTH NHS FOUNDATION TRUST","Child & Adolescent Mental Health Services",19,0.57894736842105265,5.2631578947368418E-2,6,5,7,1,0,0]
["QOP","RXV","GREATER MANCHESTER MENTAL HEALTH NHS FOUNDATION TRUST","Mental Health Other",30,0.66666666666666663,0.16666666666666666,17,3,3,2,3,2]
["QOP","RXV","GREATER MANCHESTER MENTAL HEALTH NHS FOUNDATION TRUST","Primary Care",211,0.976303317535545,1.8957345971563982E-2,179,27,0,2,2,1]
["QOP","RXV","GREATER MANCHESTER MENTAL HEALTH NHS FOUNDATION TRUST","Secondary Care Community Services",171,0.76608187134502925,0.15204678362573099,102,29,11,4,22,3]
["QOP","RXV","GREATER MANCHESTER MENTAL HEALTH NHS FOUNDATION TRUST","Secure & Forensic Services",7,0.7142857142857143,0.14285714285714285,0,5,0,1,0,1]
["QOP","RXV","GREATER MANCHESTER MENTAL HEALTH NHS FOUNDATION TRUST","Specialist Services",6,1,0,6,0,0,0,0,0]
["QOP","RT2","PENNINE CARE NHS FOUNDATION TRUST","Acute Services",77,0.80519480519480524,0.1038961038961039,35,27,5,2,6,2]
["QOP","RT2","PENNINE CARE NHS FOUNDATION TRUST","Child & Adolescent Mental Health Services",277,0.93501805054151621,2.1660649819494584E-2,185,74,10,3,3,2]
["QOP","RT2","PENNINE CARE NHS FOUNDATION TRUST","Mental Health Other",16,0.875,0,13,1,1,0,0,1]
["QOP","RT2","PENNINE CARE NHS FOUNDATION TRUST","Primary Care",63,0.82539682539682535,9.5238095238095233E-2,33,19,5,5,1,0]
["QOP","RT2","PENNINE CARE NHS FOUNDATION TRUST","Secondary Care Community Services",84,0.94047619047619047,3.5714285714285712E-2,63,16,2,2,1,0]
["QOQ","RV9","HUMBER TEACHING NHS FOUNDATION TRUST","Acute Services",36,0.80555555555555558,8.3333333333333329E-2,18,11,3,2,1,1]
["QOQ","RV9","HUMBER TEACHING NHS FOUNDATION TRUST","Child & Adolescent Mental Health Services",8,0.75,0,4,2,2,0,0,0]
["QOQ","RV9","HUMBER TEACHING NHS FOUNDATION TRUST","Mental Health Other",5,1,0,4,1,0,0,0,0]
["QOQ","RV9","HUMBER TEACHING NHS FOUNDATION TRUST","Primary Care",8,1,0,7,1,0,0,0,0]
["QOQ","RV9","HUMBER TEACHING NHS FOUNDATION TRUST","Secondary Care Community Services",53,1,0,42,11,0,0,0,0]
["QOQ","RV9","HUMBER TEACHING NHS FOUNDATION TRUST","Secure & Forensic Services",3,"*","*","*","*","*","*","*","*"]
["QOQ","RV9","HUMBER TEACHING NHS FOUNDATION TRUST","Specialist Services",2,"*","*","*","*","*","*","*","*"]
["QOX","RVN","AVON AND WILTSHIRE MENTAL HEALTH PARTNERSHIP NHS TRUST","Acute Services",68,0.80882352941176472,2.9411764705882353E-2,33,22,8,2,0,3]
["QOX","RVN","AVON AND WILTSHIRE MENTAL HEALTH PARTNERSHIP NHS TRUST","Mental Health Other",17,0.82352941176470584,5.8823529411764705E-2,"*","*","*","*","*","*"]
["QOX","RVN","AVON AND WILTSHIRE MENTAL HEALTH PARTNERSHIP NHS TRUST","Secondary Care Community Services",270,0.89629629629629626,4.0740740740740744E-2,168,74,10,7,4,7]
["QOX","RVN","AVON AND WILTSHIRE MENTAL HEALTH PARTNERSHIP NHS TRUST","Secure & Forensic Services",2,"*","*","*","*","*","*","*","*"]
["QOX","RVN","AVON AND WILTSHIRE MENTAL HEALTH PARTNERSHIP NHS TRUST","Specialist Services",17,0.88235294117647056,0,8,7,0,0,0,2]
["QPM","RP1","NORTHAMPTONSHIRE HEALTHCARE NHS FOUNDATION TRUST","Acute Services",18,0.88888888888888884,5.5555555555555552E-2,11,5,1,0,1,0]
["QPM","RP1","NORTHAMPTONSHIRE HEALTHCARE NHS FOUNDATION TRUST","Child & Adolescent Mental Health Services",23,1,0,21,2,0,0,0,0]
["QPM","RP1","NORTHAMPTONSHIRE HEALTHCARE NHS FOUNDATION TRUST","Primary Care",5,1,0,5,0,0,0,0,0]
["QPM","RP1","NORTHAMPTONSHIRE HEALTHCARE NHS FOUNDATION TRUST","Secondary Care Community Services",105,0.90476190476190477,3.8095238095238099E-2,80,15,2,0,4,4]
["QPM","RP1","NORTHAMPTONSHIRE HEALTHCARE NHS FOUNDATION TRUST","Secure & Forensic Services",333,0.91891891891891897,3.3033033033033031E-2,269,37,3,1,10,13]
["QPM","RP1","NORTHAMPTONSHIRE HEALTHCARE NHS FOUNDATION TRUST","Specialist Services",33,0.93939393939393945,6.0606060606060608E-2,28,3,0,0,2,0]
["QR1","RTQ","GLOUCESTERSHIRE HEALTH AND CARE NHS FOUNDATION TRUST","Acute Services",30,0.8,6.6666666666666666E-2,18,6,3,1,1,1]
["QR1","RTQ","GLOUCESTERSHIRE HEALTH AND CARE NHS FOUNDATION TRUST","Child & Adolescent Mental Health Services",52,0.96153846153846156,1.9230769230769232E-2,35,15,1,0,1,0]
["QR1","RTQ","GLOUCESTERSHIRE HEALTH AND CARE NHS FOUNDATION TRUST","Mental Health Other",19,0.84210526315789469,0,8,8,2,0,0,1]
["QR1","RTQ","GLOUCESTERSHIRE HEALTH AND CARE NHS FOUNDATION TRUST","Primary Care",3,"*","*","*","*","*","*","*","*"]
["QR1","RTQ","GLOUCESTERSHIRE HEALTH AND CARE NHS FOUNDATION TRUST","Secondary Care Community Services",5,0.6,0,"*","*","*","*","*","*"]
["QR1","RTQ","GLOUCESTERSHIRE HEALTH AND CARE NHS FOUNDATION TRUST","Specialist Services",45,1,0,37,8,0,0,0,0]
["QRL","R1F","ISLE OF WIGHT NHS TRUST","Primary Care",32,1,0,26,6,0,0,0,0]
["QRL","R1C","SOLENT NHS TRUST","Child & Adolescent Mental Health Services",126,0.98412698412698407,0,91,33,2,0,0,0]
["QRL","R1C","SOLENT NHS TRUST","Mental Health Other",8,0.5,0,3,1,0,0,0,4]
["QRL","R1C","SOLENT NHS TRUST","Secondary Care Community Services",39,0.97435897435897434,0,3,35,1,0,0,0]
["QRL","RW1","SOUTHERN HEALTH NHS FOUNDATION TRUST","Acute Services",96,0.98958333333333337,0,94,1,0,0,0,1]
["QRL","RW1","SOUTHERN HEALTH NHS FOUNDATION TRUST","Child & Adolescent Mental Health Services",5,1,0,4,1,0,0,0,0]
["QRL","RW1","SOUTHERN HEALTH NHS FOUNDATION TRUST","Mental Health Other",135,1,0,135,0,0,0,0,0]
["QRL","RW1","SOUTHERN HEALTH NHS FOUNDATION TRUST","Secondary Care Community Services",15,1,0,15,0,0,0,0,0]
["QRL","RW1","SOUTHERN HEALTH NHS FOUNDATION TRUST","Secure & Forensic Services",6,1,0,6,0,0,0,0,0]
["QRL","RW1","SOUTHERN HEALTH NHS FOUNDATION TRUST","Specialist Services",22,1,0,22,0,0,0,0,0]
["QRV","RKL","WEST LONDON NHS TRUST","Acute Services",85,0.96470588235294119,1.1764705882352941E-2,72,10,2,1,0,0]
["QRV","RKL","WEST LONDON NHS TRUST","Child & Adolescent Mental Health Services",6,0.66666666666666663,0.33333333333333331,"*","*","*","*","*","*"]
["QRV","RKL","WEST LONDON NHS TRUST","Primary Care",50,0.88,0.04,35,9,4,2,0,0]
["QRV","RKL","WEST LONDON NHS TRUST","Secondary Care Community Services",16,0.9375,6.25E-2,12,3,0,1,0,0]
["QRV","RKL","WEST LONDON NHS TRUST","Specialist Services",3,"*","*","*","*","*","*","*","*"]
["QSL","RH5","SOMERSET NHS FOUNDATION TRUST","Acute Services",5,0.8,0,"*","*","*","*","*","*"]
["QSL","RH5","SOMERSET NHS FOUNDATION TRUST","Primary Care",53,0.98113207547169812,0,35,17,1,0,0,0]
["QSL","RH5","SOMERSET NHS FOUNDATION TRUST","Secondary Care Community Services",1,"*","*","*","*","*","*","*","*"]
["QT1","RHA","NOTTINGHAMSHIRE HEALTHCARE NHS FOUNDATION TRUST","Acute Services",31,0.77419354838709675,0.19354838709677419,18,6,0,2,4,1]
["QT1","RHA","NOTTINGHAMSHIRE HEALTHCARE NHS FOUNDATION TRUST","Child & Adolescent Mental Health Services",2,"*","*","*","*","*","*","*","*"]
["QT1","RHA","NOTTINGHAMSHIRE HEALTHCARE NHS FOUNDATION TRUST","Primary Care",6,1,0,"*","*","*","*","*","*"]
["QT1","RHA","NOTTINGHAMSHIRE HEALTHCARE NHS FOUNDATION TRUST","Secondary Care Community Services",74,0.63513513513513509,0.25675675675675674,30,17,7,8,11,1]
["QT6","RJ8","CORNWALL PARTNERSHIP NHS FOUNDATION TRUST","Secondary Care Community Services",9,1,0,4,5,0,0,0,0]
["QU9","RNU","OXFORD HEALTH NHS FOUNDATION TRUST","Acute Services",17,0.82352941176470584,5.8823529411764705E-2,6,8,2,1,0,0]
["QU9","RNU","OXFORD HEALTH NHS FOUNDATION TRUST","Child & Adolescent Mental Health Services",16,0.8125,0.1875,13,0,0,1,2,0]
["QU9","RNU","OXFORD HEALTH NHS FOUNDATION TRUST","Primary Care",34,0.88235294117647056,8.8235294117647065E-2,26,4,0,1,2,1]
["QU9","RNU","OXFORD HEALTH NHS FOUNDATION TRUST","Secondary Care Community Services",34,0.97058823529411764,2.9411764705882353E-2,22,11,0,0,1,0]
["QU9","RNU","OXFORD HEALTH NHS FOUNDATION TRUST","Secure & Forensic Services",6,0.66666666666666663,0.16666666666666666,3,1,1,0,1,0]
["QU9","RNU","OXFORD HEALTH NHS FOUNDATION TRUST","Specialist Services",27,0.92592592592592593,3.7037037037037035E-2,21,4,1,0,1,0]
["QUA","RXT","BIRMINGHAM AND SOLIHULL MENTAL HEALTH NHS FOUNDATION TRUST","Acute Services",63,0.74603174603174605,0.15873015873015872,20,27,6,5,5,0]
["QUA","RXT","BIRMINGHAM AND SOLIHULL MENTAL HEALTH NHS FOUNDATION TRUST","Child & Adolescent Mental Health Services",2,"*","*","*","*","*","*","*","*"]
["QUA","RXT","BIRMINGHAM AND SOLIHULL MENTAL HEALTH NHS FOUNDATION TRUST","Primary Care",9,0.88888888888888884,0,"*","*","*","*","*","*"]
["QUA","RXT","BIRMINGHAM AND SOLIHULL MENTAL HEALTH NHS FOUNDATION TRUST","Secondary Care Community Services",53,0.86792452830188682,1.8867924528301886E-2,31,15,4,0,1,2]
["QUA","RXT","BIRMINGHAM AND SOLIHULL MENTAL HEALTH NHS FOUNDATION TRUST","Secure & Forensic Services",12,0.33333333333333331,0.25,2,2,5,2,1,0]
["QUA","RXT","BIRMINGHAM AND SOLIHULL MENTAL HEALTH NHS FOUNDATION TRUST","Specialist Services",24,1,0,20,4,0,0,0,0]
["QUA","TAJ","BLACK COUNTRY HEALTHCARE NHS FOUNDATION TRUST","Mental Health Other",218,0.99541284403669728,0,190,27,0,0,0,1]
["QUA","RYK","DUDLEY INTEGRATED HEALTH AND CARE NHS TRUST","Primary Care",34,0.97058823529411764,0,26,7,0,0,0,1]
["QUE","RT1","CAMBRIDGESHIRE AND PETERBOROUGH NHS FOUNDATION TRUST","Acute Services",65,0.87692307692307692,6.1538461538461542E-2,27,30,3,1,3,1]
["QUE","RT1","CAMBRIDGESHIRE AND PETERBOROUGH NHS FOUNDATION TRUST","Child & Adolescent Mental Health Services",29,0.89655172413793105,3.4482758620689655E-2,14,12,2,0,1,0]
["QUE","RT1","CAMBRIDGESHIRE AND PETERBOROUGH NHS FOUNDATION TRUST","Mental Health Other",7,1,0,6,1,0,0,0,0]
["QUE","RT1","CAMBRIDGESHIRE AND PETERBOROUGH NHS FOUNDATION TRUST","Primary Care",45,0.9555555555555556,0,41,2,0,0,0,2]
["QUE","RT1","CAMBRIDGESHIRE AND PETERBOROUGH NHS FOUNDATION TRUST","Secondary Care Community Services",70,0.9,4.2857142857142858E-2,40,23,2,1,2,2]
["QUE","RT1","CAMBRIDGESHIRE AND PETERBOROUGH NHS FOUNDATION TRUST","Specialist Services",14,0.7857142857142857,0,11,0,2,0,0,1]
["QVV","RDY","DORSET HEALTHCARE UNIVERSITY NHS FOUNDATION TRUST","Acute Services",40,0.85,2.5000000000000001E-2,20,14,2,1,0,3]
["QVV","RDY","DORSET HEALTHCARE UNIVERSITY NHS FOUNDATION TRUST","Child & Adolescent Mental Health Services",70,0.91428571428571426,0,30,34,5,0,0,1]
["QVV","RDY","DORSET HEALTHCARE UNIVERSITY NHS FOUNDATION TRUST","Mental Health Other",9,0.77777777777777779,0,6,1,2,0,0,0]
["QVV","RDY","DORSET HEALTHCARE UNIVERSITY NHS FOUNDATION TRUST","Primary Care",108,0.88888888888888884,7.407407407407407E-2,74,22,3,3,5,1]
["QVV","RDY","DORSET HEALTHCARE UNIVERSITY NHS FOUNDATION TRUST","Secondary Care Community Services",117,0.82051282051282048,0.12820512820512819,72,24,3,8,7,3]
["QVV","RDY","DORSET HEALTHCARE UNIVERSITY NHS FOUNDATION TRUST","Secure & Forensic Services",5,1,0,3,2,0,0,0,0]
["QVV","RDY","DORSET HEALTHCARE UNIVERSITY NHS FOUNDATION TRUST","Specialist Services",48,0.91666666666666663,4.1666666666666664E-2,36,8,2,0,2,0]
["QWE","RQY","SOUTH WEST LONDON AND ST GEORGE'S MENTAL HEALTH NHS TRUST","Acute Services",23,0.78260869565217395,4.3478260869565216E-2,"*","*","*","*","*","*"]
["QWE","RQY","SOUTH WEST LONDON AND ST GEORGE'S MENTAL HEALTH NHS TRUST","Child & Adolescent Mental Health Services",79,0.87341772151898733,5.0632911392405063E-2,46,23,0,4,0,6]
["QWE","RQY","SOUTH WEST LONDON AND ST GEORGE'S MENTAL HEALTH NHS TRUST","Mental Health Other",77,0.62337662337662336,9.0909090909090912E-2,39,9,5,2,5,17]
["QWE","RQY","SOUTH WEST LONDON AND ST GEORGE'S MENTAL HEALTH NHS TRUST","Primary Care",65,0.7846153846153846,0.18461538461538463,44,7,2,2,10,0]
["QWE","RQY","SOUTH WEST LONDON AND ST GEORGE'S MENTAL HEALTH NHS TRUST","Secondary Care Community Services",292,0.83904109589041098,0.11643835616438356,206,39,10,12,22,3]
["QWE","RQY","SOUTH WEST LONDON AND ST GEORGE'S MENTAL HEALTH NHS TRUST","Secure & Forensic Services",1,"*","*","*","*","*","*","*","*"]
["QWE","RQY","SOUTH WEST LONDON AND ST GEORGE'S MENTAL HEALTH NHS TRUST","Specialist Services",43,0.93023255813953487,6.9767441860465115E-2,36,4,0,0,3,0]
["QWO","TAD","BRADFORD DISTRICT CARE NHS FOUNDATION TRUST","Acute Services",10,0.8,0.2,"*","*","*","*","*","*"]
["QWO","TAD","BRADFORD DISTRICT CARE NHS FOUNDATION TRUST","Child & Adolescent Mental Health Services",22,0.77272727272727271,0.13636363636363635,13,4,1,2,1,1]
["QWO","TAD","BRADFORD DISTRICT CARE NHS FOUNDATION TRUST","Mental Health Other",5,1,0,"*","*","*","*","*","*"]
["QWO","TAD","BRADFORD DISTRICT CARE NHS FOUNDATION TRUST","Secondary Care Community Services",27,0.88888888888888884,3.7037037037037035E-2,19,5,2,1,0,0]
["QWO","TAD","BRADFORD DISTRICT CARE NHS FOUNDATION TRUST","Secure & Forensic Services",13,0.92307692307692313,7.6923076923076927E-2,5,7,0,1,0,0]
["QWO","TAD","BRADFORD DISTRICT CARE NHS FOUNDATION TRUST","Specialist Services",17,0.94117647058823528,5.8823529411764705E-2,13,3,0,1,0,0]
["QWO","RGD","LEEDS AND YORK PARTNERSHIP NHS FOUNDATION TRUST","Acute Services",6,0.66666666666666663,0.16666666666666666,4,0,0,1,0,1]
["QWO","RGD","LEEDS AND YORK PARTNERSHIP NHS FOUNDATION TRUST","Child & Adolescent Mental Health Services",1,"*","*","*","*","*","*","*","*"]
["QWO","RGD","LEEDS AND YORK PARTNERSHIP NHS FOUNDATION TRUST","Mental Health Other",4,"*","*","*","*","*","*","*","*"]
["QWO","RGD","LEEDS AND YORK PARTNERSHIP NHS FOUNDATION TRUST","Secondary Care Community Services",33,0.93939393939393945,0,24,7,2,0,0,0]
["QWO","RGD","LEEDS AND YORK PARTNERSHIP NHS FOUNDATION TRUST","Secure & Forensic Services",1,"*","*","*","*","*","*","*","*"]
["QWO","RGD","LEEDS AND YORK PARTNERSHIP NHS FOUNDATION TRUST","Specialist Services",97,0.96907216494845361,1.0309278350515464E-2,68,26,1,1,0,1]
["QWO","RY6","LEEDS COMMUNITY HEALTHCARE NHS TRUST","Child & Adolescent Mental Health Services",1,"*","*","*","*","*","*","*","*"]
["QWO","RXG","SOUTH WEST YORKSHIRE PARTNERSHIP NHS FOUNDATION TRUST","Acute Services",5,1,0,5,0,0,0,0,0]
["QWO","RXG","SOUTH WEST YORKSHIRE PARTNERSHIP NHS FOUNDATION TRUST","Child & Adolescent Mental Health Services",82,0.71951219512195119,0.15853658536585366,51,8,10,6,7,0]
["QWO","RXG","SOUTH WEST YORKSHIRE PARTNERSHIP NHS FOUNDATION TRUST","Mental Health Other",27,0.85185185185185186,0.1111111111111111,19,4,0,1,2,1]
["QWO","RXG","SOUTH WEST YORKSHIRE PARTNERSHIP NHS FOUNDATION TRUST","Secondary Care Community Services",595,0.83697478991596641,9.07563025210084E-2,401,97,29,19,35,14]
["QWO","RXG","SOUTH WEST YORKSHIRE PARTNERSHIP NHS FOUNDATION TRUST","Secure & Forensic Services",29,0.68965517241379315,0.17241379310344829,7,13,3,4,1,1]
["QWO","RXG","SOUTH WEST YORKSHIRE PARTNERSHIP NHS FOUNDATION TRUST","Specialist Services",39,0.53846153846153844,0.33333333333333331,17,4,5,4,9,0]
["QXU","RXX","SURREY AND BORDERS PARTNERSHIP NHS FOUNDATION TRUST","Acute Services",29,0.93103448275862066,0,19,8,0,0,0,2]
["QXU","RXX","SURREY AND BORDERS PARTNERSHIP NHS FOUNDATION TRUST","Child & Adolescent Mental Health Services",20,1,0,14,6,0,0,0,0]
["QXU","RXX","SURREY AND BORDERS PARTNERSHIP NHS FOUNDATION TRUST","Secondary Care Community Services",190,0.94736842105263153,2.1052631578947368E-2,136,44,5,2,2,1]
["QYG","RBS","ALDER HEY CHILDREN'S NHS FOUNDATION TRUST","Child & Adolescent Mental Health Services",28,0.9642857142857143,3.5714285714285712E-2,23,4,0,0,1,0]
["QYG","RXA","CHESHIRE AND WIRRAL PARTNERSHIP NHS FOUNDATION TRUST","Primary Care",264,0.89015151515151514,6.4393939393939392E-2,207,28,8,5,12,4]
["QYG","RW4","MERSEY CARE NHS FOUNDATION TRUST","Acute Services",114,0.85087719298245612,8.771929824561403E-3,53,44,16,1,0,0]
["QYG","RW4","MERSEY CARE NHS FOUNDATION TRUST","Child & Adolescent Mental Health Services",24,0.875,0,14,7,3,0,0,0]
["QYG","RW4","MERSEY CARE NHS FOUNDATION TRUST","Primary Care",61,0.70491803278688525,0.24590163934426229,37,6,3,5,10,0]
["QYG","RW4","MERSEY CARE NHS FOUNDATION TRUST","Secondary Care Community Services",188,0.94680851063829785,1.0638297872340425E-2,119,59,4,1,1,4]
["QYG","RW4","MERSEY CARE NHS FOUNDATION TRUST","Secure & Forensic Services",111,0.85585585585585588,7.2072072072072071E-2,55,40,6,5,3,2]
["QYG","RW4","MERSEY CARE NHS FOUNDATION TRUST","Specialist Services",55,0.98181818181818181,0,43,11,1,0,0,0]
["IS1","NNF","CITY HEALTH CARE PARTNERSHIP CIC","Mental Health Other",4,"*","*","*","*","*","*","*","*"]
["IS1","NNF","CITY HEALTH CARE PARTNERSHIP CIC","Primary Care",83,0.93975903614457834,2.4096385542168676E-2,66,12,2,1,1,1]
["IS1","NNF","CITY HEALTH CARE PARTNERSHIP CIC","Specialist Services",40,0.97499999999999998,0,"*","*","*","*","*","*"]
["IS1","NDK","FRESHNEY PELHAM CARE LIMITED","Mental Health Other",5,1,0,1,4,0,0,0,0]
["IS1","NR5","LIVEWELL SOUTHWEST","Acute Services",39,0.71794871794871795,0.12820512820512819,17,11,4,3,2,2]
["IS1","NR5","LIVEWELL SOUTHWEST","Child & Adolescent Mental Health Services",2,"*","*","*","*","*","*","*","*"]
["IS1","NR5","LIVEWELL SOUTHWEST","Primary Care",61,0.77049180327868849,9.8360655737704916E-2,8,39,7,3,3,1]
["IS1","NR5","LIVEWELL SOUTHWEST","Secondary Care Community Services",38,0.76315789473684215,2.6315789473684209E-2,22,7,6,1,0,2]
["IS1","NR5","LIVEWELL SOUTHWEST","Specialist Services",32,0.875,0,"*","*","*","*","*","*"]
["IS1","NQL","NAVIGO HEALTH AND SOCIAL CARE CIC","Mental Health Other",303,0.95049504950495045,1.9801980198019802E-2,251,37,6,3,3,3]
["IS1","O2F3D","SUTTON MENTAL HEALTH FOUNDATION ","Mental Health Other",7,1,0,5,2,0,0,0,0]
["IS1","NV2","THE HUNTERCOMBE GROUP","Child & Adolescent Mental Health Services",1,"*","*","*","*","*","*","*","*"]
["IS1","NV2","THE HUNTERCOMBE GROUP","Mental Health Other",6,0.83333333333333337,0,"*","*","*","*","*","*"]

{"sheet":"BS","index":5,"n_rows":276,"n_cols":30,"rows_kept":276,"cut":false,"hidden":true,"merged":[]}
[null,"Sort","Region (LO) Code","Region (LO) name","Trust code","Trust name","Category",null,"Sort Lists:","Sort range…","Sort range…","Sort range…","Reference Region Lists:","Code…","Name…","Linked Region Lists:","Code…","Name…","Reference Lists:","Code…","Code…","Name…","Category…","Trusts Linked Lists:","Code…","Name…","Categories Linked Lists:","Code…","Name…","Category…"]
["Region (LO)",1,1,1,"-","-","-",null,null,"STP Code","STP Code","STP Code",null,"QE1","HEALTHIER LANCASHIRE AND SOUTH CUMBRIA",null,"QE1","HEALTHIER LANCASHIRE AND SOUTH CUMBRIA",null,"QE1","RXL","BLACKPOOL TEACHING HOSPITALS NHS FOUNDATION TRUST","Secondary Care Community Services",null,"NDK","ALDER HEY CHILDREN'S NHS FOUNDATION TRUST",null,"NDK","ALDER HEY CHILDREN'S NHS FOUNDATION TRUST","Acute Services"]
["Trusts",1,1,1,1,1,"-",null,null,"STP Name","Trust Code","Trust Code",null,"QF7","SOUTH YORKSHIRE AND BASSETLAW STP",null,"QF7","SOUTH YORKSHIRE AND BASSETLAW STP",null,"QE1","RW5","LANCASHIRE & SOUTH CUMBRIA NHS FOUNDATION TRUST","Acute Services",null,"NNF","AVON AND WILTSHIRE MENTAL HEALTH PARTNERSHIP NHS TRUST",null,"NNF","AVON AND WILTSHIRE MENTAL HEALTH PARTNERSHIP NHS TRUST","Child & Adolescent Mental Health Services"]
["Categories",1,1,1,1,1,1,null,null,"Total Responses","Trust Name","Trust Name",null,"QGH","HEREFORDSHIRE AND WORCESTERSHIRE STP",null,"QGH","HEREFORDSHIRE AND WORCESTERSHIRE STP",null,"QE1","RW5","LANCASHIRE & SOUTH CUMBRIA NHS FOUNDATION TRUST","Child & Adolescent Mental Health Services",null,"NQL","BARNET, ENFIELD AND HARINGEY MENTAL HEALTH NHS TRUST",null,"NQL","BARNET, ENFIELD AND HARINGEY MENTAL HEALTH NHS TRUST","Mental Health Other"]
[null,null,null,null,null,null,null,null,null,"Total Eligible","Total Responses","Category",null,"QH8","MID AND SOUTH ESSEX STP",null,"QH8","MID AND SOUTH ESSEX STP",null,"QE1","RW5","LANCASHIRE & SOUTH CUMBRIA NHS FOUNDATION TRUST","Mental Health Other",null,"NR5","BERKSHIRE HEALTHCARE NHS FOUNDATION TRUST",null,"NR5","BERKSHIRE HEALTHCARE NHS FOUNDATION TRUST","Primary Care"]
[null,null,null,null,null,null,null,null,null,"Percentage Positive","Total Eligible","Total Responses",null,"QHL","BIRMINGHAM AND SOLIHULL STP",null,"QHL","BIRMINGHAM AND SOLIHULL STP",null,"QE1","RW5","LANCASHIRE & SOUTH CUMBRIA NHS FOUNDATION TRUST","Secondary Care Community Services",null,"NV2","BIRMINGHAM AND SOLIHULL MENTAL HEALTH NHS FOUNDATION TRUST",null,"NV2","BIRMINGHAM AND SOLIHULL MENTAL HEALTH NHS FOUNDATION TRUST","Secondary Care Community Services"]
[null,null,null,null,null,null,null,null,null,"Percentage Negative","Percentage Positive","Percentage Positive",null,"QHM","CUMBRIA AND NORTH EAST STP",null,"QHM","CUMBRIA AND NORTH EAST STP",null,"QE1","RW5","LANCASHIRE & SOUTH CUMBRIA NHS FOUNDATION TRUST","Secure & Forensic Services",null,"O2F3D","BLACK COUNTRY HEALTHCARE NHS FOUNDATION TRUST",null,"O2F3D","BLACK COUNTRY HEALTHCARE NHS FOUNDATION TRUST","Secure & Forensic Services"]
[null,null,null,null,null,null,null,null,null,"Very Good","Percentage Negative","Percentage Negative",null,"QJ2","JOINED UP CARE DERBYSHIRE STP",null,"QJ2","JOINED UP CARE DERBYSHIRE STP",null,"QE1","RW5","LANCASHIRE & SOUTH CUMBRIA NHS FOUNDATION TRUST","Specialist Services",null,"R0B","BLACKPOOL TEACHING HOSPITALS NHS FOUNDATION TRUST",null,"R0B","BLACKPOOL TEACHING HOSPITALS NHS FOUNDATION TRUST","Specialist Services"]
[null,null,null,null,null,null,null,null,null,"Good","Very Good","Very Good",null,"QJM","LINCOLNSHIRE STP",null,"QJM","LINCOLNSHIRE STP",null,"QF7","RXE","ROTHERHAM DONCASTER AND SOUTH HUMBER NHS FOUNDATION TRUST","Acute Services",null,"R1A","BRADFORD DISTRICT CARE NHS FOUNDATION TRUST",null,"R1A","BRADFORD DISTRICT CARE NHS FOUNDATION TRUST"]
[null,null,null,null,null,null,null,null,null,"Neither Good nor Poor","Good","Good",null,"QK1","LEICESTER, LEICESTERSHIRE AND RUTLAND STP",null,"QK1","LEICESTER, LEICESTERSHIRE AND RUTLAND STP",null,"QF7","RXE","ROTHERHAM DONCASTER AND SOUTH HUMBER NHS FOUNDATION TRUST","Child & Adolescent Mental Health Services",null,"R1C","CAMBRIDGESHIRE AND PETERBOROUGH NHS FOUNDATION TRUST",null,"R1C","CAMBRIDGESHIRE AND PETERBOROUGH NHS FOUNDATION TRUST"]
[null,null,null,null,null,null,null,null,null,"Poor","Neither Good nor Poor","Neither Good nor Poor",null,"QKK","OUR HEALTHIER SOUTH EAST LONDON STP",null,"QKK","OUR HEALTHIER SOUTH EAST LONDON STP",null,"QF7","RXE","ROTHERHAM DONCASTER AND SOUTH HUMBER NHS FOUNDATION TRUST","Primary Care",null,"R1F","CAMDEN AND ISLINGTON NHS FOUNDATION TRUST",null,"R1F","CAMDEN AND ISLINGTON NHS FOUNDATION TRUST"]
[null,null,null,null,null,null,null,null,null,"Very Poor","Poor","Poor",null,"QKS","KENT AND MEDWAY STP",null,"QKS","KENT AND MEDWAY STP",null,"QF7","RXE","ROTHERHAM DONCASTER AND SOUTH HUMBER NHS FOUNDATION TRUST","Secondary Care Community Services",null,"R1L","CENTRAL AND NORTH WEST LONDON NHS FOUNDATION TRUST",null,"R1L","CENTRAL AND NORTH WEST LONDON NHS FOUNDATION TRUST"]
[null,null,null,null,null,null,null,null,null,"Don't Know","Very Poor","Very Poor",null,"QM7","HERTFORDSHIRE AND WEST ESSEX STP",null,"QM7","HERTFORDSHIRE AND WEST ESSEX STP",null,"QF7","RXE","ROTHERHAM DONCASTER AND SOUTH HUMBER NHS FOUNDATION TRUST","Specialist Services",null,"RAT","CHESHIRE AND WIRRAL PARTNERSHIP NHS FOUNDATION TRUST",null,"RAT","CHESHIRE AND WIRRAL PARTNERSHIP NHS FOUNDATION TRUST"]
[null,null,null,null,null,null,null,null,null,null,"Don't Know","Don't Know",null,"QMF","EAST LONDON HEALTH & CARE PARTNERSHIP (STP)",null,"QMF","EAST LONDON HEALTH & CARE PARTNERSHIP (STP)",null,"QF7","RCU","SHEFFIELD CHILDREN'S NHS FOUNDATION TRUST","Child & Adolescent Mental Health Services",null,"RBS","CITY HEALTH CARE PARTNERSHIP CIC",null,"RBS","CITY HEALTH CARE PARTNERSHIP CIC"]
[null,null,null,null,null,null,null,null,null,null,"Mode SMS",null,null,"QMJ","NORTH LONDON PARTNERS IN HEALTH & CARE (STP)",null,"QMJ","NORTH LONDON PARTNERS IN HEALTH & CARE (STP)",null,"QF7","TAH","SHEFFIELD HEALTH & SOCIAL CARE NHS FOUNDATION TRUST","Mental Health Other",null,"RCU","CORNWALL PARTNERSHIP NHS FOUNDATION TRUST",null,"RCU","CORNWALL PARTNERSHIP NHS FOUNDATION TRUST"]
[null,null,null,null,null,null,null,null,null,null,"Mode Electronic Discharge",null,null,"QMM","NORFOLK AND WAVENEY HEALTH & CARE PARTNERSHIP (STP)",null,"QMM","NORFOLK AND WAVENEY HEALTH & CARE PARTNERSHIP (STP)",null,"QF7","TAH","SHEFFIELD HEALTH & SOCIAL CARE NHS FOUNDATION TRUST","Secondary Care Community Services",null,"RDY","CUMBRIA, NORTHUMBERLAND, TYNE AND WEAR NHS FOUNDATION TRUST",null,"RDY","CUMBRIA, NORTHUMBERLAND, TYNE AND WEAR NHS FOUNDATION TRUST"]
[null,null,null,null,null,null,null,null,null,null,"Mode Electronic Home",null,null,"QNC","STAFFORDSHIRE & STOKE ON TRENT STP",null,"QNC","STAFFORDSHIRE & STOKE ON TRENT STP",null,"QF7","TAH","SHEFFIELD HEALTH & SOCIAL CARE NHS FOUNDATION TRUST","Specialist Services",null,"RGD","DERBYSHIRE HEALTHCARE NHS FOUNDATION TRUST",null,"RGD","DERBYSHIRE HEALTHCARE NHS FOUNDATION TRUST"]
[null,null,null,null,null,null,null,null,null,null,"Mode Paper Discharge",null,null,"QNQ","FRIMLEY HEALTH & CARE (STP)",null,"QNQ","FRIMLEY HEALTH & CARE (STP)",null,"QGH","R1A","HEREFORDSHIRE AND WORCESTERSHIRE HEALTH AND CARE NHS TRUST","Child & Adolescent Mental Health Services",null,"RH5","DORSET HEALTHCARE UNIVERSITY NHS FOUNDATION TRUST",null,"RH5","DORSET HEALTHCARE UNIVERSITY NHS FOUNDATION TRUST"]
[null,null,null,null,null,null,null,null,null,null,"Mode Paper Home",null,null,"QNX","SUSSEX HEALTH AND CARE PARTNERSHIP",null,"QNX","SUSSEX HEALTH AND CARE PARTNERSHIP",null,"QGH","R1A","HEREFORDSHIRE AND WORCESTERSHIRE HEALTH AND CARE NHS TRUST","Mental Health Other",null,"RHA","DUDLEY INTEGRATED HEALTH AND CARE NHS TRUST",null,"RHA","DUDLEY INTEGRATED HEALTH AND CARE NHS TRUST"]
[null,null,null,null,null,null,null,null,null,null,"Mode Telephone",null,null,"QOP","GREATER MANCHESTER HEALTH & SOCIAL CARE PARTNERSHIP",null,"QOP","GREATER MANCHESTER HEALTH & SOCIAL CARE PARTNERSHIP",null,"QGH","R1A","HEREFORDSHIRE AND WORCESTERSHIRE HEALTH AND CARE NHS TRUST","Primary Care",null,"RJ8","EAST LONDON NHS FOUNDATION TRUST",null,"RJ8","EAST LONDON NHS FOUNDATION TRUST"]
[null,null,null,null,null,null,null,null,null,null,"Mode Online",null,null,"QOQ","HUMBER, COAST AND VALE STP",null,"QOQ","HUMBER, COAST AND VALE STP",null,"QGH","R1A","HEREFORDSHIRE AND WORCESTERSHIRE HEALTH AND CARE NHS TRUST","Secondary Care Community Services",null,"RKL","ESSEX PARTNERSHIP UNIVERSITY NHS FOUNDATION TRUST",null,"RKL","ESSEX PARTNERSHIP UNIVERSITY NHS FOUNDATION TRUST"]
[null,null,null,null,null,null,null,null,null,null,"Mode Other",null,null,"QOX","BATH AND NORTH EAST SOMERSET, SWINDON AND WILTSHIRE STP",null,"QOX","BATH AND NORTH EAST SOMERSET, SWINDON AND WILTSHIRE STP",null,"QGH","R1A","HEREFORDSHIRE AND WORCESTERSHIRE HEALTH AND CARE NHS TRUST","Specialist Services",null,"RLY","FRESHNEY PELHAM CARE LIMITED",null,"RLY","FRESHNEY PELHAM CARE LIMITED"]
[null,null,null,null,null,null,null,null,null,null,null,null,null,"QPM","NORTHAMPTONSHIRE STP",null,"QPM","NORTHAMPTONSHIRE STP",null,"QH8","R1L","ESSEX PARTNERSHIP UNIVERSITY NHS FOUNDATION TRUST","Primary Care",null,"RMY","GLOUCESTERSHIRE HEALTH AND CARE NHS FOUNDATION TRUST",null,"RMY","GLOUCESTERSHIRE HEALTH AND CARE NHS FOUNDATION TRUST"]
[null,null,null,null,null,null,null,null,null,null,null,null,null,"QR1","GLOUCESTERSHIRE STP",null,"QR1","GLOUCESTERSHIRE STP",null,"QH8","R1L","ESSEX PARTNERSHIP UNIVERSITY NHS FOUNDATION TRUST","Secondary Care Community Services",null,"RNK","GREATER MANCHESTER MENTAL HEALTH NHS FOUNDATION TRUST",null,"RNK","GREATER MANCHESTER MENTAL HEALTH NHS FOUNDATION TRUST"]
[null,null,null,null,null,null,null,null,null,null,null,null,null,"QRL","HAMPSHIRE AND THE ISLE OF WIGHT STP",null,"QRL","HAMPSHIRE AND THE ISLE OF WIGHT STP",null,"QHM","RX4","CUMBRIA, NORTHUMBERLAND, TYNE AND WEAR NHS FOUNDATION TRUST","Acute Services",null,"RNU","HEREFORDSHIRE AND WORCESTERSHIRE HEALTH AND CARE NHS TRUST",null,"RNU","HEREFORDSHIRE AND WORCESTERSHIRE HEALTH AND CARE NHS TRUST"]
[null,null,null,null,null,null,null,null,null,null,null,null,null,"QRV","NORTH WEST LONDON HEALTH & CARE PARTNERSHIP (STP)",null,"QRV","NORTH WEST LONDON HEALTH & CARE PARTNERSHIP (STP)",null,"QHM","RX4","CUMBRIA, NORTHUMBERLAND, TYNE AND WEAR NHS FOUNDATION TRUST","Child & Adolescent Mental Health Services",null,"RP1","HERTFORDSHIRE COMMUNITY NHS TRUST",null,"RP1","HERTFORDSHIRE COMMUNITY NHS TRUST"]
[null,null,null,null,null,null,null,null,null,null,null,null,null,"QSL","SOMERSET STP",null,"QSL","SOMERSET STP",null,"QHM","RX4","CUMBRIA, NORTHUMBERLAND, TYNE AND WEAR NHS FOUNDATION TRUST","Mental Health Other",null,"RP7","HERTFORDSHIRE PARTNERSHIP UNIVERSITY NHS FOUNDATION TRUST",null,"RP7","HERTFORDSHIRE PARTNERSHIP UNIVERSITY NHS FOUNDATION TRUST"]
[null,null,null,null,null,null,null,null,null,null,null,null,null,"QT1","NOTTINGHAM AND NOTTINGHAMSHIRE HEALTH AND CARE STP",null,"QT1","NOTTINGHAM AND NOTTINGHAMSHIRE HEALTH AND CARE STP",null,"QHM","RX4","CUMBRIA, NORTHUMBERLAND, TYNE AND WEAR NHS FOUNDATION TRUST","Secondary Care Community Services",null,"RPG","HUMBER TEACHING NHS FOUNDATION TRUST",null,"RPG","HUMBER TEACHING NHS FOUNDATION TRUST"]
[null,null,null,null,null,null,null,null,null,null,null,null,null,"QT6","CORNWALL AND THE ISLES OF SCILLY HEALTH & SOCIAL CARE PARTNERSHIP (STP)",null,"QT6","CORNWALL AND THE ISLES OF SCILLY HEALTH & SOCIAL CARE PARTNERSHIP (STP)",null,"QHM","RX4","CUMBRIA, NORTHUMBERLAND, TYNE AND WEAR NHS FOUNDATION TRUST","Secure & Forensic Services",null,"RQY","ISLE OF WIGHT NHS TRUST",null,"RQY","ISLE OF WIGHT NHS TRUST"]
[null,null,null,null,null,null,null,null,null,null,null,null,null,"QU9","BUCKINGHAMSHIRE, OXFORDSHIRE AND BERKSHIRE WEST STP",null,"QU9","BUCKINGHAMSHIRE, OXFORDSHIRE AND BERKSHIRE WEST STP",null,"QHM","RX4","CUMBRIA, NORTHUMBERLAND, TYNE AND WEAR NHS FOUNDATION TRUST","Specialist Services",null,"RRE","KENT AND MEDWAY NHS AND SOCIAL CARE PARTNERSHIP TRUST",null,"RRE","KENT AND MEDWAY NHS AND SOCIAL CARE PARTNERSHIP TRUST"]
[null,null,null,null,null,null,null,null,null,null,null,null,null,"QUA","THE BLACK COUNTRY AND WEST BIRMINGHAM STP",null,"QUA","THE BLACK COUNTRY AND WEST BIRMINGHAM STP",null,"QHM","R0B","SOUTH TYNESIDE AND SUNDERLAND NHS FOUNDATION TRUST","Child & Adolescent Mental Health Services",null,"RRP","LANCASHIRE & SOUTH CUMBRIA NHS FOUNDATION TRUST",null,"RRP","LANCASHIRE & SOUTH CUMBRIA NHS FOUNDATION TRUST"]
[null,null,null,null,null,null,null,null,null,null,null,null,null,"QUE","CAMBRIDGESHIRE AND PETERBOROUGH STP",null,"QUE","CAMBRIDGESHIRE AND PETERBOROUGH STP",null,"QHM","RX3","TEES, ESK AND WEAR VALLEYS NHS FOUNDATION TRUST","Acute Services",null,"RRV","LEEDS AND YORK PARTNERSHIP NHS FOUNDATION TRUST",null,"RRV","LEEDS AND YORK PARTNERSHIP NHS FOUNDATION TRUST"]
[null,null,null,null,null,null,null,null,null,null,null,null,null,"QVV","DORSET STP",null,"QVV","DORSET STP",null,"QHM","RX3","TEES, ESK AND WEAR VALLEYS NHS FOUNDATION TRUST","Child & Adolescent Mental Health Services",null,"RT1","LEEDS COMMUNITY HEALTHCARE NHS TRUST",null,"RT1","LEEDS COMMUNITY HEALTHCARE NHS TRUST"]
[null,null,null,null,null,null,null,null,null,null,null,null,null,"QWE","SOUTH WEST LONDON HEALTH & CARE PARTNERSHIP (STP)",null,"QWE","SOUTH WEST LONDON HEALTH & CARE PARTNERSHIP (STP)",null,"QHM","RX3","TEES, ESK AND WEAR VALLEYS NHS FOUNDATION TRUST","Mental Health Other",null,"RT2","LEICESTERSHIRE PARTNERSHIP NHS TRUST",null,"RT2","LEICESTERSHIRE PARTNERSHIP NHS TRUST"]
[null,null,null,null,null,null,null,null,null,null,null,null,null,"QWO","WEST YORKSHIRE AND HARROGATE HEALTH & CARE PARTNERSHIP (STP)",null,"QWO","WEST YORKSHIRE AND HARROGATE HEALTH & CARE PARTNERSHIP (STP)",null,"QHM","RX3","TEES, ESK AND WEAR VALLEYS NHS FOUNDATION TRUST","Primary Care",null,"RT5","LINCOLNSHIRE PARTNERSHIP NHS FOUNDATION TRUST",null,"RT5","LINCOLNSHIRE PARTNERSHIP NHS FOUNDATION TRUST"]
[null,null,null,null,null,null,null,null,null,null,null,null,null,"QWU","COVENTRY AND WARWICKSHIRE STP",null,"QWU","COVENTRY AND WARWICKSHIRE STP",null,"QHM","RX3","TEES, ESK AND WEAR VALLEYS NHS FOUNDATION TRUST","Secondary Care Community Services",null,"RTQ","LIVEWELL SOUTHWEST",null,"RTQ","LIVEWELL SOUTHWEST"]
[null,null,null,null,null,null,null,null,null,null,null,null,null,"QXU","SURREY HEARTLANDS HEALTH & CARE PARTNERSHIP (STP)",null,"QXU","SURREY HEARTLANDS HEALTH & CARE PARTNERSHIP (STP)",null,"QHM","RX3","TEES, ESK AND WEAR VALLEYS NHS FOUNDATION TRUST","Secure & Forensic Services",null,"RV3","MERSEY CARE NHS FOUNDATION TRUST",null,"RV3","MERSEY CARE NHS FOUNDATION TRUST"]
[null,null,null,null,null,null,null,null,null,null,null,null,null,"QYG","CHESHIRE AND MERSEYSIDE STP",null,"QYG","CHESHIRE AND MERSEYSIDE STP",null,"QHM","RX3","TEES, ESK AND WEAR VALLEYS NHS FOUNDATION TRUST","Specialist Services",null,"RV5","MIDLANDS PARTNERSHIP NHS FOUNDATION TRUST",null,"RV5","MIDLANDS PARTNERSHIP NHS FOUNDATION TRUST"]
[null,null,null,null,null,null,null,null,null,null,null,null,null,"IS1","Independent Sector Providers",null,"IS1","Independent Sector Providers",null,"QJ2","RXM","DERBYSHIRE HEALTHCARE NHS FOUNDATION TRUST","Acute Services",null,"RV9","NAVIGO HEALTH AND SOCIAL CARE CIC",null,"RV9","NAVIGO HEALTH AND SOCIAL CARE CIC"]
[null,null,null,null,null,null,null,null,null,null,null,null,null,null,null,null,null,null,null,"QJ2","RXM","DERBYSHIRE HEALTHCARE NHS FOUNDATION TRUST","Child & Adolescent Mental Health Services",null,"RVN","NORFOLK AND SUFFOLK NHS FOUNDATION TRUST",null,"RVN","NORFOLK AND SUFFOLK NHS FOUNDATION TRUST"]
[null,null,null,null,null,null,null,null,null,null,null,null,null,null,null,null,null,null,null,"QJ2","RXM","DERBYSHIRE HEALTHCARE NHS FOUNDATION TRUST","Mental Health Other",null,"RW1","NORTH EAST LONDON NHS FOUNDATION TRUST",null,"RW1","NORTH EAST LONDON NHS FOUNDATION TRUST"]
[null,null,null,null,null,null,null,null,null,null,null,null,null,null,null,null,null,null,null,"QJ2","RXM","DERBYSHIRE HEALTHCARE NHS FOUNDATION TRUST","Primary Care",null,"RW4","NORTH STAFFORDSHIRE COMBINED HEALTHCARE NHS TRUST",null,"RW4","NORTH STAFFORDSHIRE COMBINED HEALTHCARE NHS TRUST"]
[null,null,null,null,null,null,null,null,null,null,null,null,null,null,null,null,null,null,null,"QJ2","RXM","DERBYSHIRE HEALTHCARE NHS FOUNDATION TRUST","Secondary Care Community Services",null,"RW5","NORTHAMPTONSHIRE HEALTHCARE NHS FOUNDATION TRUST",null,"RW5","NORTHAMPTONSHIRE HEALTHCARE NHS FOUNDATION TRUST"]
[null,null,null,null,null,null,null,null,null,null,null,null,null,null,null,null,null,null,null,"QJ2","RXM","DERBYSHIRE HEALTHCARE NHS FOUNDATION TRUST","Specialist Services",null,"RWK","NOTTINGHAMSHIRE HEALTHCARE NHS FOUNDATION TRUST",null,"RWK","NOTTINGHAMSHIRE HEALTHCARE NHS FOUNDATION TRUST"]
[null,null,null,null,null,null,null,null,null,null,null,null,null,null,null,null,null,null,null,"QJM","RP7","LINCOLNSHIRE PARTNERSHIP NHS FOUNDATION TRUST","Acute Services",null,"RWR","OXFORD HEALTH NHS FOUNDATION TRUST",null,"RWR","OXFORD HEALTH NHS FOUNDATION TRUST"]
[null,null,null,null,null,null,null,null,null,null,null,null,null,null,null,null,null,null,null,"QJM","RP7","LINCOLNSHIRE PARTNERSHIP NHS FOUNDATION TRUST","Child & Adolescent Mental Health Services",null,"RWX","OXLEAS NHS FOUNDATION TRUST",null,"RWX","OXLEAS NHS FOUNDATION TRUST"]
[null,null,null,null,null,null,null,null,null,null,null,null,null,null,null,null,null,null,null,"QJM","RP7","LINCOLNSHIRE PARTNERSHIP NHS FOUNDATION TRUST","Mental Health Other",null,"RX2","PENNINE CARE NHS FOUNDATION TRUST",null,"RX2","PENNINE CARE NHS FOUNDATION TRUST"]
[null,null,null,null,null,null,null,null,null,null,null,null,null,null,null,null,null,null,null,"QJM","RP7","LINCOLNSHIRE PARTNERSHIP NHS FOUNDATION TRUST","Primary Care",null,"RX3","ROTHERHAM DONCASTER AND SOUTH HUMBER NHS FOUNDATION TRUST",null,"RX3","ROTHERHAM DONCASTER AND SOUTH HUMBER NHS FOUNDATION TRUST"]
[null,null,null,null,null,null,null,null,null,null,null,null,null,null,null,null,null,null,null,"QJM","RP7","LINCOLNSHIRE PARTNERSHIP NHS FOUNDATION TRUST","Secondary Care Community Services",null,"RX4","SHEFFIELD CHILDREN'S NHS FOUNDATION TRUST",null,"RX4","SHEFFIELD CHILDREN'S NHS FOUNDATION TRUST"]
[null,null,null,null,null,null,null,null,null,null,null,null,null,null,null,null,null,null,null,"QJM","RP7","LINCOLNSHIRE PARTNERSHIP NHS FOUNDATION TRUST","Secure & Forensic Services",null,"RXA","SHEFFIELD HEALTH & SOCIAL CARE NHS FOUNDATION TRUST",null,"RXA","SHEFFIELD HEALTH & SOCIAL CARE NHS FOUNDATION TRUST"]
[null,null,null,null,null,null,null,null,null,null,null,null,null,null,null,null,null,null,null,"QJM","RP7","LINCOLNSHIRE PARTNERSHIP NHS FOUNDATION TRUST","Specialist Services",null,"RXE","SOLENT NHS TRUST",null,"RXE","SOLENT NHS TRUST"]
[null,null,null,null,null,null,null,null,null,null,null,null,null,null,null,null,null,null,null,"QK1","RT5","LEICESTERSHIRE PARTNERSHIP NHS TRUST","Acute Services",null,"RXG","SOMERSET NHS FOUNDATION TRUST",null,"RXG","SOMERSET NHS FOUNDATION TRUST"]
[null,null,null,null,null,null,null,null,null,null,null,null,null,null,null,null,null,null,null,"QK1","RT5","LEICESTERSHIRE PARTNERSHIP NHS TRUST","Child & Adolescent Mental Health Services",null,"RXL","SOUTH LONDON AND MAUDSLEY NHS FOUNDATION TRUST",null,"RXL","SOUTH LONDON AND MAUDSLEY NHS FOUNDATION TRUST"]
[null,null,null,null,null,null,null,null,null,null,null,null,null,null,null,null,null,null,null,"QK1","RT5","LEICESTERSHIRE PARTNERSHIP NHS TRUST","Secondary Care Community Services",null,"RXM","SOUTH TYNESIDE AND SUNDERLAND NHS FOUNDATION TRUST",null,"RXM","SOUTH TYNESIDE AND SUNDERLAND NHS FOUNDATION TRUST"]
[null,null,null,null,null,null,null,null,null,null,null,null,null,null,null,null,null,null,null,"QK1","RT5","LEICESTERSHIRE PARTNERSHIP NHS TRUST","Specialist Services",null,"RXT","SOUTH WEST LONDON AND ST GEORGE'S MENTAL HEALTH NHS TRUST",null,"RXT","SOUTH WEST LONDON AND ST GEORGE'S MENTAL HEALTH NHS TRUST"]
[null,null,null,null,null,null,null,null,null,null,null,null,null,null,null,null,null,null,null,"QKK","RPG","OXLEAS NHS FOUNDATION TRUST","Acute Services",null,"RXV","SOUTH WEST YORKSHIRE PARTNERSHIP NHS FOUNDATION TRUST",null,"RXV","SOUTH WEST YORKSHIRE PARTNERSHIP NHS FOUNDATION TRUST"]
[null,null,null,null,null,null,null,null,null,null,null,null,null,null,null,null,null,null,null,"QKK","RPG","OXLEAS NHS FOUNDATION TRUST","Child & Adolescent Mental Health Services",null,"RXX","SOUTHERN HEALTH NHS FOUNDATION TRUST",null,"RXX","SOUTHERN HEALTH NHS FOUNDATION TRUST"]
[null,null,null,null,null,null,null,null,null,null,null,null,null,null,null,null,null,null,null,"QKK","RPG","OXLEAS NHS FOUNDATION TRUST","Primary Care",null,"RXY","SURREY AND BORDERS PARTNERSHIP NHS FOUNDATION TRUST",null,"RXY","SURREY AND BORDERS PARTNERSHIP NHS FOUNDATION TRUST"]
[null,null,null,null,null,null,null,null,null,null,null,null,null,null,null,null,null,null,null,"QKK","RPG","OXLEAS NHS FOUNDATION TRUST","Secondary Care Community Services",null,"RY4","SUSSEX PARTNERSHIP NHS FOUNDATION TRUST",null,"RY4","SUSSEX PARTNERSHIP NHS FOUNDATION TRUST"]
[null,null,null,null,null,null,null,null,null,null,null,null,null,null,null,null,null,null,null,"QKK","RPG","OXLEAS NHS FOUNDATION TRUST","Secure & Forensic Services",null,"RY6","SUTTON MENTAL HEALTH FOUNDATION ",null,"RY6","SUTTON MENTAL HEALTH FOUNDATION "]
[null,null,null,null,null,null,null,null,null,null,null,null,null,null,null,null,null,null,null,"QKK","RPG","OXLEAS NHS FOUNDATION TRUST","Specialist Services",null,"RYK","TAVISTOCK AND PORTMAN NHS FOUNDATION TRUST",null,"RYK","TAVISTOCK AND PORTMAN NHS FOUNDATION TRUST"]
[null,null,null,null,null,null,null,null,null,null,null,null,null,null,null,null,null,null,null,"QKK","RV5","SOUTH LONDON AND MAUDSLEY NHS FOUNDATION TRUST","Acute Services",null,"TAD","TEES, ESK AND WEAR VALLEYS NHS FOUNDATION TRUST",null,"TAD","TEES, ESK AND WEAR VALLEYS NHS FOUNDATION TRUST"]
[null,null,null,null,null,null,null,null,null,null,null,null,null,null,null,null,null,null,null,"QKK","RV5","SOUTH LONDON AND MAUDSLEY NHS FOUNDATION TRUST","Child & Adolescent Mental Health Services",null,"TAF","THE HUNTERCOMBE GROUP",null,"TAF","THE HUNTERCOMBE GROUP"]
[null,null,null,null,null,null,null,null,null,null,null,null,null,null,null,null,null,null,null,"QKK","RV5","SOUTH LONDON AND MAUDSLEY NHS FOUNDATION TRUST","Primary Care",null,"TAH","UNIVERSITY COLLEGE LONDON HOSPITALS NHS FOUNDATION TRUST",null,"TAH","UNIVERSITY COLLEGE LONDON HOSPITALS NHS FOUNDATION TRUST"]
[null,null,null,null,null,null,null,null,null,null,null,null,null,null,null,null,null,null,null,"QKK","RV5","SOUTH LONDON AND MAUDSLEY NHS FOUNDATION TRUST","Secondary Care Community Services",null,"TAJ","WEST LONDON NHS TRUST",null,"TAJ","WEST LONDON NHS TRUST"]
[null,null,null,null,null,null,null,null,null,null,null,null,null,null,null,null,null,null,null,"QKK","RV5","SOUTH LONDON AND MAUDSLEY NHS FOUNDATION TRUST","Secure & Forensic Services"]
[null,null,null,null,null,null,null,null,null,null,null,null,null,null,null,null,null,null,null,"QKK","RV5","SOUTH LONDON AND MAUDSLEY NHS FOUNDATION TRUST","Specialist Services"]
[null,null,null,null,null,null,null,null,null,null,null,null,null,null,null,null,null,null,null,"QKS","RXY","KENT AND MEDWAY NHS AND SOCIAL CARE PARTNERSHIP TRUST","Acute Services"]
[null,null,null,null,null,null,null,null,null,null,null,null,null,null,null,null,null,null,null,"QKS","RXY","KENT AND MEDWAY NHS AND SOCIAL CARE PARTNERSHIP TRUST","Mental Health Other"]
[null,null,null,null,null,null,null,null,null,null,null,null,null,null,null,null,null,null,null,"QKS","RXY","KENT AND MEDWAY NHS AND SOCIAL CARE PARTNERSHIP TRUST","Secondary Care Community Services"]
[null,null,null,null,null,null,null,null,null,null,null,null,null,null,null,null,null,null,null,"QKS","RXY","KENT AND MEDWAY NHS AND SOCIAL CARE PARTNERSHIP TRUST","Secure & Forensic Services"]
[null,null,null,null,null,null,null,null,null,null,null,null,null,null,null,null,null,null,null,"QKS","RXY","KENT AND MEDWAY NHS AND SOCIAL CARE PARTNERSHIP TRUST","Specialist Services"]
[null,null,null,null,null,null,null,null,null,null,null,null,null,null,null,null,null,null,null,"QM7","RY4","HERTFORDSHIRE COMMUNITY NHS TRUST","Child & Adolescent Mental Health Services"]
[null,null,null,null,null,null,null,null,null,null,null,null,null,null,null,null,null,null,null,"QM7","RWR","HERTFORDSHIRE PARTNERSHIP UNIVERSITY NHS FOUNDATION TRUST","Acute Services"]
[null,null,null,null,null,null,null,null,null,null,null,null,null,null,null,null,null,null,null,"QM7","RWR","HERTFORDSHIRE PARTNERSHIP UNIVERSITY NHS FOUNDATION TRUST","Child & Adolescent Mental Health Services"]
[null,null,null,null,null,null,null,null,null,null,null,null,null,null,null,null,null,null,null,"QM7","RWR","HERTFORDSHIRE PARTNERSHIP UNIVERSITY NHS FOUNDATION TRUST","Mental Health Other"]
[null,null,null,null,null,null,null,null,null,null,null,null,null,null,null,null,null,null,null,"QM7","RWR","HERTFORDSHIRE PARTNERSHIP UNIVERSITY NHS FOUNDATION TRUST","Primary Care"]
[null,null,null,null,null,null,null,null,null,null,null,null,null,null,null,null,null,null,null,"QM7","RWR","HERTFORDSHIRE PARTNERSHIP UNIVERSITY NHS FOUNDATION TRUST","Secondary Care Community Services"]
[null,null,null,null,null,null,null,null,null,null,null,null,null,null,null,null,null,null,null,"QM7","RWR","HERTFORDSHIRE PARTNERSHIP UNIVERSITY NHS FOUNDATION TRUST","Secure & Forensic Services"]
[null,null,null,null,null,null,null,null,null,null,null,null,null,null,null,null,null,null,null,"QM7","RWR","HERTFORDSHIRE PARTNERSHIP UNIVERSITY NHS FOUNDATION TRUST","Specialist Services"]
[null,null,null,null,null,null,null,null,null,null,null,null,null,null,null,null,null,null,null,"QMF","RWK","EAST LONDON NHS FOUNDATION TRUST","Acute Services"]
[null,null,null,null,null,null,null,null,null,null,null,null,null,null,null,null,null,null,null,"QMF","RWK","EAST LONDON NHS FOUNDATION TRUST","Child & Adolescent Mental Health Services"]
[null,null,null,null,null,null,null,null,null,null,null,null,null,null,null,null,null,null,null,"QMF","RWK","EAST LONDON NHS FOUNDATION TRUST","Mental Health Other"]
[null,null,null,null,null,null,null,null,null,null,null,null,null,null,null,null,null,null,null,"QMF","RWK","EAST LONDON NHS FOUNDATION TRUST","Primary Care"]
[null,null,null,null,null,null,null,null,null,null,null,null,null,null,null,null,null,null,null,"QMF","RWK","EAST LONDON NHS FOUNDATION TRUST","Secondary Care Community Services"]
[null,null,null,null,null,null,null,null,null,null,null,null,null,null,null,null,null,null,null,"QMF","RWK","EAST LONDON NHS FOUNDATION TRUST","Secure & Forensic Services"]
[null,null,null,null,null,null,null,null,null,null,null,null,null,null,null,null,null,null,null,"QMF","RWK","EAST LONDON NHS FOUNDATION TRUST","Specialist Services"]
[null,null,null,null,null,null,null,null,null,null,null,null,null,null,null,null,null,null,null,"QMF","RAT","NORTH EAST LONDON NHS FOUNDATION TRUST","Acute Services"]
[null,null,null,null,null,null,null,null,null,null,null,null,null,null,null,null,null,null,null,"QMF","RAT","NORTH EAST LONDON NHS FOUNDATION TRUST","Child & Adolescent Mental Health Services"]
[null,null,null,null,null,null,null,null,null,null,null,null,null,null,null,null,null,null,null,"QMF","RAT","NORTH EAST LONDON NHS FOUNDATION TRUST","Primary Care"]
[null,null,null,null,null,null,null,null,null,null,null,null,null,null,null,null,null,null,null,"QMF","RAT","NORTH EAST LONDON NHS FOUNDATION TRUST","Secondary Care Community Services"]
[null,null,null,null,null,null,null,null,null,null,null,null,null,null,null,null,null,null,null,"QMF","RAT","NORTH EAST LONDON NHS FOUNDATION TRUST","Specialist Services"]
[null,null,null,null,null,null,null,null,null,null,null,null,null,null,null,null,null,null,null,"QMJ","RRP","BARNET, ENFIELD AND HARINGEY MENTAL HEALTH NHS TRUST","Acute Services"]
[null,null,null,null,null,null,null,null,null,null,null,null,null,null,null,null,null,null,null,"QMJ","RRP","BARNET, ENFIELD AND HARINGEY MENTAL HEALTH NHS TRUST","Child & Adolescent Mental Health Services"]
[null,null,null,null,null,null,null,null,null,null,null,null,null,null,null,null,null,null,null,"QMJ","RRP","BARNET, ENFIELD AND HARINGEY MENTAL HEALTH NHS TRUST","Primary Care"]
[null,null,null,null,null,null,null,null,null,null,null,null,null,null,null,null,null,null,null,"QMJ","RRP","BARNET, ENFIELD AND HARINGEY MENTAL HEALTH NHS TRUST","Secondary Care Community Services"]
[null,null,null,null,null,null,null,null,null,null,null,null,null,null,null,null,null,null,null,"QMJ","RRP","BARNET, ENFIELD AND HARINGEY MENTAL HEALTH NHS TRUST","Secure & Forensic Services"]
[null,null,null,null,null,null,null,null,null,null,null,null,null,null,null,null,null,null,null,"QMJ","RRP","BARNET, ENFIELD AND HARINGEY MENTAL HEALTH NHS TRUST","Specialist Services"]
[null,null,null,null,null,null,null,null,null,null,null,null,null,null,null,null,null,null,null,"QMJ","TAF","CAMDEN AND ISLINGTON NHS FOUNDATION TRUST","Acute Services"]
[null,null,null,null,null,null,null,null,null,null,null,null,null,null,null,null,null,null,null,"QMJ","TAF","CAMDEN AND ISLINGTON NHS FOUNDATION TRUST","Primary Care"]
[null,null,null,null,null,null,null,null,null,null,null,null,null,null,null,null,null,null,null,"QMJ","TAF","CAMDEN AND ISLINGTON NHS FOUNDATION TRUST","Secondary Care Community Services"]
[null,null,null,null,null,null,null,null,null,null,null,null,null,null,null,null,null,null,null,"QMJ","TAF","CAMDEN AND ISLINGTON NHS FOUNDATION TRUST","Specialist Services"]
[null,null,null,null,null,null,null,null,null,null,null,null,null,null,null,null,null,null,null,"QMJ","RV3","CENTRAL AND NORTH WEST LONDON NHS FOUNDATION TRUST","Acute Services"]
[null,null,null,null,null,null,null,null,null,null,null,null,null,null,null,null,null,null,null,"QMJ","RV3","CENTRAL AND NORTH WEST LONDON NHS FOUNDATION TRUST","Child & Adolescent Mental Health Services"]
[null,null,null,null,null,null,null,null,null,null,null,null,null,null,null,null,null,null,null,"QMJ","RV3","CENTRAL AND NORTH WEST LONDON NHS FOUNDATION TRUST","Mental Health Other"]
[null,null,null,null,null,null,null,null,null,null,null,null,null,null,null,null,null,null,null,"QMJ","RV3","CENTRAL AND NORTH WEST LONDON NHS FOUNDATION TRUST","Primary Care"]
[null,null,null,null,null,null,null,null,null,null,null,null,null,null,null,null,null,null,null,"QMJ","RV3","CENTRAL AND NORTH WEST LONDON NHS FOUNDATION TRUST","Secondary Care Community Services"]
[null,null,null,null,null,null,null,null,null,null,null,null,null,null,null,null,null,null,null,"QMJ","RV3","CENTRAL AND NORTH WEST LONDON NHS FOUNDATION TRUST","Specialist Services"]
[null,null,null,null,null,null,null,null,null,null,null,null,null,null,null,null,null,null,null,"QMJ","RNK","TAVISTOCK AND PORTMAN NHS FOUNDATION TRUST","Mental Health Other"]
[null,null,null,null,null,null,null,null,null,null,null,null,null,null,null,null,null,null,null,"QMJ","RRV","UNIVERSITY COLLEGE LONDON HOSPITALS NHS FOUNDATION TRUST","Mental Health Other"]
[null,null,null,null,null,null,null,null,null,null,null,null,null,null,null,null,null,null,null,"QMM","RMY","NORFOLK AND SUFFOLK NHS FOUNDATION TRUST","Acute Services"]
[null,null,null,null,null,null,null,null,null,null,null,null,null,null,null,null,null,null,null,"QMM","RMY","NORFOLK AND SUFFOLK NHS FOUNDATION TRUST","Child & Adolescent Mental Health Services"]
[null,null,null,null,null,null,null,null,null,null,null,null,null,null,null,null,null,null,null,"QMM","RMY","NORFOLK AND SUFFOLK NHS FOUNDATION TRUST","Secondary Care Community Services"]
[null,null,null,null,null,null,null,null,null,null,null,null,null,null,null,null,null,null,null,"QMM","RMY","NORFOLK AND SUFFOLK NHS FOUNDATION TRUST","Secure & Forensic Services"]
[null,null,null,null,null,null,null,null,null,null,null,null,null,null,null,null,null,null,null,"QMM","RMY","NORFOLK AND SUFFOLK NHS FOUNDATION TRUST","Specialist Services"]
[null,null,null,null,null,null,null,null,null,null,null,null,null,null,null,null,null,null,null,"QNC","RRE","MIDLANDS PARTNERSHIP NHS FOUNDATION TRUST","Acute Services"]
[null,null,null,null,null,null,null,null,null,null,null,null,null,null,null,null,null,null,null,"QNC","RRE","MIDLANDS PARTNERSHIP NHS FOUNDATION TRUST","Child & Adolescent Mental Health Services"]
[null,null,null,null,null,null,null,null,null,null,null,null,null,null,null,null,null,null,null,"QNC","RRE","MIDLANDS PARTNERSHIP NHS FOUNDATION TRUST","Mental Health Other"]
[null,null,null,null,null,null,null,null,null,null,null,null,null,null,null,null,null,null,null,"QNC","RRE","MIDLANDS PARTNERSHIP NHS FOUNDATION TRUST","Primary Care"]
[null,null,null,null,null,null,null,null,null,null,null,null,null,null,null,null,null,null,null,"QNC","RRE","MIDLANDS PARTNERSHIP NHS FOUNDATION TRUST","Secondary Care Community Services"]
[null,null,null,null,null,null,null,null,null,null,null,null,null,null,null,null,null,null,null,"QNC","RRE","MIDLANDS PARTNERSHIP NHS FOUNDATION TRUST","Secure & Forensic Services"]
[null,null,null,null,null,null,null,null,null,null,null,null,null,null,null,null,null,null,null,"QNC","RRE","MIDLANDS PARTNERSHIP NHS FOUNDATION TRUST","Specialist Services"]
[null,null,null,null,null,null,null,null,null,null,null,null,null,null,null,null,null,null,null,"QNC","RLY","NORTH STAFFORDSHIRE COMBINED HEALTHCARE NHS TRUST","Acute Services"]
[null,null,null,null,null,null,null,null,null,null,null,null,null,null,null,null,null,null,null,"QNC","RLY","NORTH STAFFORDSHIRE COMBINED HEALTHCARE NHS TRUST","Child & Adolescent Mental Health Services"]
[null,null,null,null,null,null,null,null,null,null,null,null,null,null,null,null,null,null,null,"QNC","RLY","NORTH STAFFORDSHIRE COMBINED HEALTHCARE NHS TRUST","Mental Health Other"]
[null,null,null,null,null,null,null,null,null,null,null,null,null,null,null,null,null,null,null,"QNC","RLY","NORTH STAFFORDSHIRE COMBINED HEALTHCARE NHS TRUST","Primary Care"]
[null,null,null,null,null,null,null,null,null,null,null,null,null,null,null,null,null,null,null,"QNC","RLY","NORTH STAFFORDSHIRE COMBINED HEALTHCARE NHS TRUST","Secondary Care Community Services"]
[null,null,null,null,null,null,null,null,null,null,null,null,null,null,null,null,null,null,null,"QNC","RLY","NORTH STAFFORDSHIRE COMBINED HEALTHCARE NHS TRUST","Specialist Services"]
[null,null,null,null,null,null,null,null,null,null,null,null,null,null,null,null,null,null,null,"QNQ","RWX","BERKSHIRE HEALTHCARE NHS FOUNDATION TRUST","Acute Services"]
[null,null,null,null,null,null,null,null,null,null,null,null,null,null,null,null,null,null,null,"QNQ","RWX","BERKSHIRE HEALTHCARE NHS FOUNDATION TRUST","Child & Adolescent Mental Health Services"]
[null,null,null,null,null,null,null,null,null,null,null,null,null,null,null,null,null,null,null,"QNQ","RWX","BERKSHIRE HEALTHCARE NHS FOUNDATION TRUST","Mental Health Other"]
[null,null,null,null,null,null,null,null,null,null,null,null,null,null,null,null,null,null,null,"QNQ","RWX","BERKSHIRE HEALTHCARE NHS FOUNDATION TRUST","Primary Care"]
[null,null,null,null,null,null,null,null,null,null,null,null,null,null,null,null,null,null,null,"QNQ","RWX","BERKSHIRE HEALTHCARE NHS FOUNDATION TRUST","Secondary Care Community Services"]
[null,null,null,null,null,null,null,null,null,null,null,null,null,null,null,null,null,null,null,"QNQ","RWX","BERKSHIRE HEALTHCARE NHS FOUNDATION TRUST","Specialist Services"]
[null,null,null,null,null,null,null,null,null,null,null,null,null,null,null,null,null,null,null,"QNX","RX2","SUSSEX PARTNERSHIP NHS FOUNDATION TRUST","Acute Services"]
[null,null,null,null,null,null,null,null,null,null,null,null,null,null,null,null,null,null,null,"QNX","RX2","SUSSEX PARTNERSHIP NHS FOUNDATION TRUST","Child & Adolescent Mental Health Services"]
[null,null,null,null,null,null,null,null,null,null,null,null,null,null,null,null,null,null,null,"QNX","RX2","SUSSEX PARTNERSHIP NHS FOUNDATION TRUST","Mental Health Other"]
[null,null,null,null,null,null,null,null,null,null,null,null,null,null,null,null,null,null,null,"QNX","RX2","SUSSEX PARTNERSHIP NHS FOUNDATION TRUST","Secondary Care Community Services"]
[null,null,null,null,null,null,null,null,null,null,null,null,null,null,null,null,null,null,null,"QNX","RX2","SUSSEX PARTNERSHIP NHS FOUNDATION TRUST","Secure & Forensic Services"]
[null,null,null,null,null,null,null,null,null,null,null,null,null,null,null,null,null,null,null,"QNX","RX2","SUSSEX PARTNERSHIP NHS FOUNDATION TRUST","Specialist Services"]
[null,null,null,null,null,null,null,null,null,null,null,null,null,null,null,null,null,null,null,"QOP","RXV","GREATER MANCHESTER MENTAL HEALTH NHS FOUNDATION TRUST","Acute Services"]
[null,null,null,null,null,null,null,null,null,null,null,null,null,null,null,null,null,null,null,"QOP","RXV","GREATER MANCHESTER MENTAL HEALTH NHS FOUNDATION TRUST","Child & Adolescent Mental Health Services"]
[null,null,null,null,null,null,null,null,null,null,null,null,null,null,null,null,null,null,null,"QOP","RXV","GREATER MANCHESTER MENTAL HEALTH NHS FOUNDATION TRUST","Mental Health Other"]
[null,null,null,null,null,null,null,null,null,null,null,null,null,null,null,null,null,null,null,"QOP","RXV","GREATER MANCHESTER MENTAL HEALTH NHS FOUNDATION TRUST","Primary Care"]
[null,null,null,null,null,null,null,null,null,null,null,null,null,null,null,null,null,null,null,"QOP","RXV","GREATER MANCHESTER MENTAL HEALTH NHS FOUNDATION TRUST","Secondary Care Community Services"]
[null,null,null,null,null,null,null,null,null,null,null,null,null,null,null,null,null,null,null,"QOP","RXV","GREATER MANCHESTER MENTAL HEALTH NHS FOUNDATION TRUST","Secure & Forensic Services"]
[null,null,null,null,null,null,null,null,null,null,null,null,null,null,null,null,null,null,null,"QOP","RXV","GREATER MANCHESTER MENTAL HEALTH NHS FOUNDATION TRUST","Specialist Services"]
[null,null,null,null,null,null,null,null,null,null,null,null,null,null,null,null,null,null,null,"QOP","RT2","PENNINE CARE NHS FOUNDATION TRUST","Acute Services"]
[null,null,null,null,null,null,null,null,null,null,null,null,null,null,null,null,null,null,null,"QOP","RT2","PENNINE CARE NHS FOUNDATION TRUST","Child & Adolescent Mental Health Services"]
[null,null,null,null,null,null,null,null,null,null,null,null,null,null,null,null,null,null,null,"QOP","RT2","PENNINE CARE NHS FOUNDATION TRUST","Mental Health Other"]
[null,null,null,null,null,null,null,null,null,null,null,null,null,null,null,null,null,null,null,"QOP","RT2","PENNINE CARE NHS FOUNDATION TRUST","Primary Care"]
[null,null,null,null,null,null,null,null,null,null,null,null,null,null,null,null,null,null,null,"QOP","RT2","PENNINE CARE NHS FOUNDATION TRUST","Secondary Care Community Services"]
[null,null,null,null,null,null,null,null,null,null,null,null,null,null,null,null,null,null,null,"QOQ","RV9","HUMBER TEACHING NHS FOUNDATION TRUST","Acute Services"]
[null,null,null,null,null,null,null,null,null,null,null,null,null,null,null,null,null,null,null,"QOQ","RV9","HUMBER TEACHING NHS FOUNDATION TRUST","Child & Adolescent Mental Health Services"]
[null,null,null,null,null,null,null,null,null,null,null,null,null,null,null,null,null,null,null,"QOQ","RV9","HUMBER TEACHING NHS FOUNDATION TRUST","Mental Health Other"]
[null,null,null,null,null,null,null,null,null,null,null,null,null,null,null,null,null,null,null,"QOQ","RV9","HUMBER TEACHING NHS FOUNDATION TRUST","Primary Care"]
[null,null,null,null,null,null,null,null,null,null,null,null,null,null,null,null,null,null,null,"QOQ","RV9","HUMBER TEACHING NHS FOUNDATION TRUST","Secondary Care Community Services"]
[null,null,null,null,null,null,null,null,null,null,null,null,null,null,null,null,null,null,null,"QOQ","RV9","HUMBER TEACHING NHS FOUNDATION TRUST","Secure & Forensic Services"]
[null,null,null,null,null,null,null,null,null,null,null,null,null,null,null,null,null,null,null,"QOQ","RV9","HUMBER TEACHING NHS FOUNDATION TRUST","Specialist Services"]
[null,null,null,null,null,null,null,null,null,null,null,null,null,null,null,null,null,null,null,"QOX","RVN","AVON AND WILTSHIRE MENTAL HEALTH PARTNERSHIP NHS TRUST","Acute Services"]
[null,null,null,null,null,null,null,null,null,null,null,null,null,null,null,null,null,null,null,"QOX","RVN","AVON AND WILTSHIRE MENTAL HEALTH PARTNERSHIP NHS TRUST","Mental Health Other"]
[null,null,null,null,null,null,null,null,null,null,null,null,null,null,null,null,null,null,null,"QOX","RVN","AVON AND WILTSHIRE MENTAL HEALTH PARTNERSHIP NHS TRUST","Secondary Care Community Services"]
[null,null,null,null,null,null,null,null,null,null,null,null,null,null,null,null,null,null,null,"QOX","RVN","AVON AND WILTSHIRE MENTAL HEALTH PARTNERSHIP NHS TRUST","Secure & Forensic Services"]
[null,null,null,null,null,null,null,null,null,null,null,null,null,null,null,null,null,null,null,"QOX","RVN","AVON AND WILTSHIRE MENTAL HEALTH PARTNERSHIP NHS TRUST","Specialist Services"]
[null,null,null,null,null,null,null,null,null,null,null,null,null,null,null,null,null,null,null,"QPM","RP1","NORTHAMPTONSHIRE HEALTHCARE NHS FOUNDATION TRUST","Acute Services"]
[null,null,null,null,null,null,null,null,null,null,null,null,null,null,null,null,null,null,null,"QPM","RP1","NORTHAMPTONSHIRE HEALTHCARE NHS FOUNDATION TRUST","Child & Adolescent Mental Health Services"]
[null,null,null,null,null,null,null,null,null,null,null,null,null,null,null,null,null,null,null,"QPM","RP1","NORTHAMPTONSHIRE HEALTHCARE NHS FOUNDATION TRUST","Primary Care"]
[null,null,null,null,null,null,null,null,null,null,null,null,null,null,null,null,null,null,null,"QPM","RP1","NORTHAMPTONSHIRE HEALTHCARE NHS FOUNDATION TRUST","Secondary Care Community Services"]
[null,null,null,null,null,null,null,null,null,null,null,null,null,null,null,null,null,null,null,"QPM","RP1","NORTHAMPTONSHIRE HEALTHCARE NHS FOUNDATION TRUST","Secure & Forensic Services"]
[null,null,null,null,null,null,null,null,null,null,null,null,null,null,null,null,null,null,null,"QPM","RP1","NORTHAMPTONSHIRE HEALTHCARE NHS FOUNDATION TRUST","Specialist Services"]
[null,null,null,null,null,null,null,null,null,null,null,null,null,null,null,null,null,null,null,"QR1","RTQ","GLOUCESTERSHIRE HEALTH AND CARE NHS FOUNDATION TRUST","Acute Services"]
[null,null,null,null,null,null,null,null,null,null,null,null,null,null,null,null,null,null,null,"QR1","RTQ","GLOUCESTERSHIRE HEALTH AND CARE NHS FOUNDATION TRUST","Child & Adolescent Mental Health Services"]
[null,null,null,null,null,null,null,null,null,null,null,null,null,null,null,null,null,null,null,"QR1","RTQ","GLOUCESTERSHIRE HEALTH AND CARE NHS FOUNDATION TRUST","Mental Health Other"]
[null,null,null,null,null,null,null,null,null,null,null,null,null,null,null,null,null,null,null,"QR1","RTQ","GLOUCESTERSHIRE HEALTH AND CARE NHS FOUNDATION TRUST","Primary Care"]
[null,null,null,null,null,null,null,null,null,null,null,null,null,null,null,null,null,null,null,"QR1","RTQ","GLOUCESTERSHIRE HEALTH AND CARE NHS FOUNDATION TRUST","Secondary Care Community Services"]
[null,null,null,null,null,null,null,null,null,null,null,null,null,null,null,null,null,null,null,"QR1","RTQ","GLOUCESTERSHIRE HEALTH AND CARE NHS FOUNDATION TRUST","Specialist Services"]
[null,null,null,null,null,null,null,null,null,null,null,null,null,null,null,null,null,null,null,"QRL","R1F","ISLE OF WIGHT NHS TRUST","Primary Care"]
[null,null,null,null,null,null,null,null,null,null,null,null,null,null,null,null,null,null,null,"QRL","R1C","SOLENT NHS TRUST","Child & Adolescent Mental Health Services"]
[null,null,null,null,null,null,null,null,null,null,null,null,null,null,null,null,null,null,null,"QRL","R1C","SOLENT NHS TRUST","Mental Health Other"]
[null,null,null,null,null,null,null,null,null,null,null,null,null,null,null,null,null,null,null,"QRL","R1C","SOLENT NHS TRUST","Secondary Care Community Services"]
[null,null,null,null,null,null,null,null,null,null,null,null,null,null,null,null,null,null,null,"QRL","RW1","SOUTHERN HEALTH NHS FOUNDATION TRUST","Acute Services"]
[null,null,null,null,null,null,null,null,null,null,null,null,null,null,null,null,null,null,null,"QRL","RW1","SOUTHERN HEALTH NHS FOUNDATION TRUST","Child & Adolescent Mental Health Services"]
[null,null,null,null,null,null,null,null,null,null,null,null,null,null,null,null,null,null,null,"QRL","RW1","SOUTHERN HEALTH NHS FOUNDATION TRUST","Mental Health Other"]
[null,null,null,null,null,null,null,null,null,null,null,null,null,null,null,null,null,null,null,"QRL","RW1","SOUTHERN HEALTH NHS FOUNDATION TRUST","Secondary Care Community Services"]
[null,null,null,null,null,null,null,null,null,null,null,null,null,null,null,null,null,null,null,"QRL","RW1","SOUTHERN HEALTH NHS FOUNDATION TRUST","Secure & Forensic Services"]
[null,null,null,null,null,null,null,null,null,null,null,null,null,null,null,null,null,null,null,"QRL","RW1","SOUTHERN HEALTH NHS FOUNDATION TRUST","Specialist Services"]
[null,null,null,null,null,null,null,null,null,null,null,null,null,null,null,null,null,null,null,"QRV","RKL","WEST LONDON NHS TRUST","Acute Services"]
[null,null,null,null,null,null,null,null,null,null,null,null,null,null,null,null,null,null,null,"QRV","RKL","WEST LONDON NHS TRUST","Child & Adolescent Mental Health Services"]
[null,null,null,null,null,null,null,null,null,null,null,null,null,null,null,null,null,null,null,"QRV","RKL","WEST LONDON NHS TRUST","Primary Care"]
[null,null,null,null,null,null,null,null,null,null,null,null,null,null,null,null,null,null,null,"QRV","RKL","WEST LONDON NHS TRUST","Secondary Care Community Services"]
[null,null,null,null,null,null,null,null,null,null,null,null,null,null,null,null,null,null,null,"QRV","RKL","WEST LONDON NHS TRUST","Specialist Services"]
[null,null,null,null,null,null,null,null,null,null,null,null,null,null,null,null,null,null,null,"QSL","RH5","SOMERSET NHS FOUNDATION TRUST","Acute Services"]
[null,null,null,null,null,null,null,null,null,null,null,null,null,null,null,null,null,null,null,"QSL","RH5","SOMERSET NHS FOUNDATION TRUST","Primary Care"]
[null,null,null,null,null,null,null,null,null,null,null,null,null,null,null,null,null,null,null,"QSL","RH5","SOMERSET NHS FOUNDATION TRUST","Secondary Care Community Services"]
[null,null,null,null,null,null,null,null,null,null,null,null,null,null,null,null,null,null,null,"QT1","RHA","NOTTINGHAMSHIRE HEALTHCARE NHS FOUNDATION TRUST","Acute Services"]
[null,null,null,null,null,null,null,null,null,null,null,null,null,null,null,null,null,null,null,"QT1","RHA","NOTTINGHAMSHIRE HEALTHCARE NHS FOUNDATION TRUST","Child & Adolescent Mental Health Services"]
[null,null,null,null,null,null,null,null,null,null,null,null,null,null,null,null,null,null,null,"QT1","RHA","NOTTINGHAMSHIRE HEALTHCARE NHS FOUNDATION TRUST","Primary Care"]
[null,null,null,null,null,null,null,null,null,null,null,null,null,null,null,null,null,null,null,"QT1","RHA","NOTTINGHAMSHIRE HEALTHCARE NHS FOUNDATION TRUST","Secondary Care Community Services"]
[null,null,null,null,null,null,null,null,null,null,null,null,null,null,null,null,null,null,null,"QT6","RJ8","CORNWALL PARTNERSHIP NHS FOUNDATION TRUST","Secondary Care Community Services"]
[null,null,null,null,null,null,null,null,null,null,null,null,null,null,null,null,null,null,null,"QU9","RNU","OXFORD HEALTH NHS FOUNDATION TRUST","Acute Services"]
[null,null,null,null,null,null,null,null,null,null,null,null,null,null,null,null,null,null,null,"QU9","RNU","OXFORD HEALTH NHS FOUNDATION TRUST","Child & Adolescent Mental Health Services"]
[null,null,null,null,null,null,null,null,null,null,null,null,null,null,null,null,null,null,null,"QU9","RNU","OXFORD HEALTH NHS FOUNDATION TRUST","Primary Care"]
[null,null,null,null,null,null,null,null,null,null,null,null,null,null,null,null,null,null,null,"QU9","RNU","OXFORD HEALTH NHS FOUNDATION TRUST","Secondary Care Community Services"]
[null,null,null,null,null,null,null,null,null,null,null,null,null,null,null,null,null,null,null,"QU9","RNU","OXFORD HEALTH NHS FOUNDATION TRUST","Secure & Forensic Services"]
[null,null,null,null,null,null,null,null,null,null,null,null,null,null,null,null,null,null,null,"QU9","RNU","OXFORD HEALTH NHS FOUNDATION TRUST","Specialist Services"]
[null,null,null,null,null,null,null,null,null,null,null,null,null,null,null,null,null,null,null,"QUA","RXT","BIRMINGHAM AND SOLIHULL MENTAL HEALTH NHS FOUNDATION TRUST","Acute Services"]
[null,null,null,null,null,null,null,null,null,null,null,null,null,null,null,null,null,null,null,"QUA","RXT","BIRMINGHAM AND SOLIHULL MENTAL HEALTH NHS FOUNDATION TRUST","Child & Adolescent Mental Health Services"]
[null,null,null,null,null,null,null,null,null,null,null,null,null,null,null,null,null,null,null,"QUA","RXT","BIRMINGHAM AND SOLIHULL MENTAL HEALTH NHS FOUNDATION TRUST","Primary Care"]
[null,null,null,null,null,null,null,null,null,null,null,null,null,null,null,null,null,null,null,"QUA","RXT","BIRMINGHAM AND SOLIHULL MENTAL HEALTH NHS FOUNDATION TRUST","Secondary Care Community Services"]
[null,null,null,null,null,null,null,null,null,null,null,null,null,null,null,null,null,null,null,"QUA","RXT","BIRMINGHAM AND SOLIHULL MENTAL HEALTH NHS FOUNDATION TRUST","Secure & Forensic Services"]
[null,null,null,null,null,null,null,null,null,null,null,null,null,null,null,null,null,null,null,"QUA","RXT","BIRMINGHAM AND SOLIHULL MENTAL HEALTH NHS FOUNDATION TRUST","Specialist Services"]
[null,null,null,null,null,null,null,null,null,null,null,null,null,null,null,null,null,null,null,"QUA","TAJ","BLACK COUNTRY HEALTHCARE NHS FOUNDATION TRUST","Mental Health Other"]
[null,null,null,null,null,null,null,null,null,null,null,null,null,null,null,null,null,null,null,"QUA","RYK","DUDLEY INTEGRATED HEALTH AND CARE NHS TRUST","Primary Care"]
[null,null,null,null,null,null,null,null,null,null,null,null,null,null,null,null,null,null,null,"QUE","RT1","CAMBRIDGESHIRE AND PETERBOROUGH NHS FOUNDATION TRUST","Acute Services"]
[null,null,null,null,null,null,null,null,null,null,null,null,null,null,null,null,null,null,null,"QUE","RT1","CAMBRIDGESHIRE AND PETERBOROUGH NHS FOUNDATION TRUST","Child & Adolescent Mental Health Services"]
[null,null,null,null,null,null,null,null,null,null,null,null,null,null,null,null,null,null,null,"QUE","RT1","CAMBRIDGESHIRE AND PETERBOROUGH NHS FOUNDATION TRUST","Mental Health Other"]
[null,null,null,null,null,null,null,null,null,null,null,null,null,null,null,null,null,null,null,"QUE","RT1","CAMBRIDGESHIRE AND PETERBOROUGH NHS FOUNDATION TRUST","Primary Care"]
[null,null,null,null,null,null,null,null,null,null,null,null,null,null,null,null,null,null,null,"QUE","RT1","CAMBRIDGESHIRE AND PETERBOROUGH NHS FOUNDATION TRUST","Secondary Care Community Services"]
[null,null,null,null,null,null,null,null,null,null,null,null,null,null,null,null,null,null,null,"QUE","RT1","CAMBRIDGESHIRE AND PETERBOROUGH NHS FOUNDATION TRUST","Specialist Services"]
[null,null,null,null,null,null,null,null,null,null,null,null,null,null,null,null,null,null,null,"QVV","RDY","DORSET HEALTHCARE UNIVERSITY NHS FOUNDATION TRUST","Acute Services"]
[null,null,null,null,null,null,null,null,null,null,null,null,null,null,null,null,null,null,null,"QVV","RDY","DORSET HEALTHCARE UNIVERSITY NHS FOUNDATION TRUST","Child & Adolescent Mental Health Services"]
[null,null,null,null,null,null,null,null,null,null,null,null,null,null,null,null,null,null,null,"QVV","RDY","DORSET HEALTHCARE UNIVERSITY NHS FOUNDATION TRUST","Mental Health Other"]
[null,null,null,null,null,null,null,null,null,null,null,null,null,null,null,null,null,null,null,"QVV","RDY","DORSET HEALTHCARE UNIVERSITY NHS FOUNDATION TRUST","Primary Care"]
[null,null,null,null,null,null,null,null,null,null,null,null,null,null,null,null,null,null,null,"QVV","RDY","DORSET HEALTHCARE UNIVERSITY NHS FOUNDATION TRUST","Secondary Care Community Services"]
[null,null,null,null,null,null,null,null,null,null,null,null,null,null,null,null,null,null,null,"QVV","RDY","DORSET HEALTHCARE UNIVERSITY NHS FOUNDATION TRUST","Secure & Forensic Services"]
[null,null,null,null,null,null,null,null,null,null,null,null,null,null,null,null,null,null,null,"QVV","RDY","DORSET HEALTHCARE UNIVERSITY NHS FOUNDATION TRUST","Specialist Services"]
[null,null,null,null,null,null,null,null,null,null,null,null,null,null,null,null,null,null,null,"QWE","RQY","SOUTH WEST LONDON AND ST GEORGE'S MENTAL HEALTH NHS TRUST","Acute Services"]
[null,null,null,null,null,null,null,null,null,null,null,null,null,null,null,null,null,null,null,"QWE","RQY","SOUTH WEST LONDON AND ST GEORGE'S MENTAL HEALTH NHS TRUST","Child & Adolescent Mental Health Services"]
[null,null,null,null,null,null,null,null,null,null,null,null,null,null,null,null,null,null,null,"QWE","RQY","SOUTH WEST LONDON AND ST GEORGE'S MENTAL HEALTH NHS TRUST","Mental Health Other"]
[null,null,null,null,null,null,null,null,null,null,null,null,null,null,null,null,null,null,null,"QWE","RQY","SOUTH WEST LONDON AND ST GEORGE'S MENTAL HEALTH NHS TRUST","Primary Care"]
[null,null,null,null,null,null,null,null,null,null,null,null,null,null,null,null,null,null,null,"QWE","RQY","SOUTH WEST LONDON AND ST GEORGE'S MENTAL HEALTH NHS TRUST","Secondary Care Community Services"]
[null,null,null,null,null,null,null,null,null,null,null,null,null,null,null,null,null,null,null,"QWE","RQY","SOUTH WEST LONDON AND ST GEORGE'S MENTAL HEALTH NHS TRUST","Secure & Forensic Services"]
[null,null,null,null,null,null,null,null,null,null,null,null,null,null,null,null,null,null,null,"QWE","RQY","SOUTH WEST LONDON AND ST GEORGE'S MENTAL HEALTH NHS TRUST","Specialist Services"]
[null,null,null,null,null,null,null,null,null,null,null,null,null,null,null,null,null,null,null,"QWO","TAD","BRADFORD DISTRICT CARE NHS FOUNDATION TRUST","Acute Services"]
[null,null,null,null,null,null,null,null,null,null,null,null,null,null,null,null,null,null,null,"QWO","TAD","BRADFORD DISTRICT CARE NHS FOUNDATION TRUST","Child & Adolescent Mental Health Services"]
[null,null,null,null,null,null,null,null,null,null,null,null,null,null,null,null,null,null,null,"QWO","TAD","BRADFORD DISTRICT CARE NHS FOUNDATION TRUST","Mental Health Other"]
[null,null,null,null,null,null,null,null,null,null,null,null,null,null,null,null,null,null,null,"QWO","TAD","BRADFORD DISTRICT CARE NHS FOUNDATION TRUST","Secondary Care Community Services"]
[null,null,null,null,null,null,null,null,null,null,null,null,null,null,null,null,null,null,null,"QWO","TAD","BRADFORD DISTRICT CARE NHS FOUNDATION TRUST","Secure & Forensic Services"]
[null,null,null,null,null,null,null,null,null,null,null,null,null,null,null,null,null,null,null,"QWO","TAD","BRADFORD DISTRICT CARE NHS FOUNDATION TRUST","Specialist Services"]
[null,null,null,null,null,null,null,null,null,null,null,null,null,null,null,null,null,null,null,"QWO","RGD","LEEDS AND YORK PARTNERSHIP NHS FOUNDATION TRUST","Acute Services"]
[null,null,null,null,null,null,null,null,null,null,null,null,null,null,null,null,null,null,null,"QWO","RGD","LEEDS AND YORK PARTNERSHIP NHS FOUNDATION TRUST","Child & Adolescent Mental Health Services"]
[null,null,null,null,null,null,null,null,null,null,null,null,null,null,null,null,null,null,null,"QWO","RGD","LEEDS AND YORK PARTNERSHIP NHS FOUNDATION TRUST","Mental Health Other"]
[null,null,null,null,null,null,null,null,null,null,null,null,null,null,null,null,null,null,null,"QWO","RGD","LEEDS AND YORK PARTNERSHIP NHS FOUNDATION TRUST","Secondary Care Community Services"]
[null,null,null,null,null,null,null,null,null,null,null,null,null,null,null,null,null,null,null,"QWO","RGD","LEEDS AND YORK PARTNERSHIP NHS FOUNDATION TRUST","Secure & Forensic Services"]
[null,null,null,null,null,null,null,null,null,null,null,null,null,null,null,null,null,null,null,"QWO","RGD","LEEDS AND YORK PARTNERSHIP NHS FOUNDATION TRUST","Specialist Services"]
[null,null,null,null,null,null,null,null,null,null,null,null,null,null,null,null,null,null,null,"QWO","RY6","LEEDS COMMUNITY HEALTHCARE NHS TRUST","Child & Adolescent Mental Health Services"]
[null,null,null,null,null,null,null,null,null,null,null,null,null,null,null,null,null,null,null,"QWO","RXG","SOUTH WEST YORKSHIRE PARTNERSHIP NHS FOUNDATION TRUST","Acute Services"]
[null,null,null,null,null,null,null,null,null,null,null,null,null,null,null,null,null,null,null,"QWO","RXG","SOUTH WEST YORKSHIRE PARTNERSHIP NHS FOUNDATION TRUST","Child & Adolescent Mental Health Services"]
[null,null,null,null,null,null,null,null,null,null,null,null,null,null,null,null,null,null,null,"QWO","RXG","SOUTH WEST YORKSHIRE PARTNERSHIP NHS FOUNDATION TRUST","Mental Health Other"]
[null,null,null,null,null,null,null,null,null,null,null,null,null,null,null,null,null,null,null,"QWO","RXG","SOUTH WEST YORKSHIRE PARTNERSHIP NHS FOUNDATION TRUST","Secondary Care Community Services"]
[null,null,null,null,null,null,null,null,null,null,null,null,null,null,null,null,null,null,null,"QWO","RXG","SOUTH WEST YORKSHIRE PARTNERSHIP NHS FOUNDATION TRUST","Secure & Forensic Services"]
[null,null,null,null,null,null,null,null,null,null,null,null,null,null,null,null,null,null,null,"QWO","RXG","SOUTH WEST YORKSHIRE PARTNERSHIP NHS FOUNDATION TRUST","Specialist Services"]
[null,null,null,null,null,null,null,null,null,null,null,null,null,null,null,null,null,null,null,"QXU","RXX","SURREY AND BORDERS PARTNERSHIP NHS FOUNDATION TRUST","Acute Services"]
[null,null,null,null,null,null,null,null,null,null,null,null,null,null,null,null,null,null,null,"QXU","RXX","SURREY AND BORDERS PARTNERSHIP NHS FOUNDATION TRUST","Child & Adolescent Mental Health Services"]
[null,null,null,null,null,null,null,null,null,null,null,null,null,null,null,null,null,null,null,"QXU","RXX","SURREY AND BORDERS PARTNERSHIP NHS FOUNDATION TRUST","Secondary Care Community Services"]
[null,null,null,null,null,null,null,null,null,null,null,null,null,null,null,null,null,null,null,"QYG","RBS","ALDER HEY CHILDREN'S NHS FOUNDATION TRUST","Child & Adolescent Mental Health Services"]
[null,null,null,null,null,null,null,null,null,null,null,null,null,null,null,null,null,null,null,"QYG","RXA","CHESHIRE AND WIRRAL PARTNERSHIP NHS FOUNDATION TRUST","Primary Care"]
[null,null,null,null,null,null,null,null,null,null,null,null,null,null,null,null,null,null,null,"QYG","RW4","MERSEY CARE NHS FOUNDATION TRUST","Acute Services"]
[null,null,null,null,null,null,null,null,null,null,null,null,null,null,null,null,null,null,null,"QYG","RW4","MERSEY CARE NHS FOUNDATION TRUST","Child & Adolescent Mental Health Services"]
[null,null,null,null,null,null,null,null,null,null,null,null,null,null,null,null,null,null,null,"QYG","RW4","MERSEY CARE NHS FOUNDATION TRUST","Primary Care"]
[null,null,null,null,null,null,null,null,null,null,null,null,null,null,null,null,null,null,null,"QYG","RW4","MERSEY CARE NHS FOUNDATION TRUST","Secondary Care Community Services"]
[null,null,null,null,null,null,null,null,null,null,null,null,null,null,null,null,null,null,null,"QYG","RW4","MERSEY CARE NHS FOUNDATION TRUST","Secure & Forensic Services"]
[null,null,null,null,null,null,null,null,null,null,null,null,null,null,null,null,null,null,null,"QYG","RW4","MERSEY CARE NHS FOUNDATION TRUST","Specialist Services"]
[null,null,null,null,null,null,null,null,null,null,null,null,null,null,null,null,null,null,null,"IS1","NNF","CITY HEALTH CARE PARTNERSHIP CIC","Mental Health Other"]
[null,null,null,null,null,null,null,null,null,null,null,null,null,null,null,null,null,null,null,"IS1","NNF","CITY HEALTH CARE PARTNERSHIP CIC","Primary Care"]
[null,null,null,null,null,null,null,null,null,null,null,null,null,null,null,null,null,null,null,"IS1","NNF","CITY HEALTH CARE PARTNERSHIP CIC","Specialist Services"]
[null,null,null,null,null,null,null,null,null,null,null,null,null,null,null,null,null,null,null,"IS1","NDK","FRESHNEY PELHAM CARE LIMITED","Mental Health Other"]
[null,null,null,null,null,null,null,null,null,null,null,null,null,null,null,null,null,null,null,"IS1","NR5","LIVEWELL SOUTHWEST","Acute Services"]
[null,null,null,null,null,null,null,null,null,null,null,null,null,null,null,null,null,null,null,"IS1","NR5","LIVEWELL SOUTHWEST","Child & Adolescent Mental Health Services"]
[null,null,null,null,null,null,null,null,null,null,null,null,null,null,null,null,null,null,null,"IS1","NR5","LIVEWELL SOUTHWEST","Primary Care"]
[null,null,null,null,null,null,null,null,null,null,null,null,null,null,null,null,null,null,null,"IS1","NR5","LIVEWELL SOUTHWEST","Secondary Care Community Services"]
[null,null,null,null,null,null,null,null,null,null,null,null,null,null,null,null,null,null,null,"IS1","NR5","LIVEWELL SOUTHWEST","Specialist Services"]
[null,null,null,null,null,null,null,null,null,null,null,null,null,null,null,null,null,null,null,"IS1","NQL","NAVIGO HEALTH AND SOCIAL CARE CIC","Mental Health Other"]
[null,null,null,null,null,null,null,null,null,null,null,null,null,null,null,null,null,null,null,"IS1","O2F3D","SUTTON MENTAL HEALTH FOUNDATION ","Mental Health Other"]
[null,null,null,null,null,null,null,null,null,null,null,null,null,null,null,null,null,null,null,"IS1","NV2","THE HUNTERCOMBE GROUP","Child & Adolescent Mental Health Services"]
[null,null,null,null,null,null,null,null,null,null,null,null,null,null,null,null,null,null,null,"IS1","NV2","THE HUNTERCOMBE GROUP","Mental Health Other"]